Body,Body Name,Date,Transaction Number,Invoice Number,Amount,Supplier Name,Supplier ID ,VAT Registration Number ,Expense Area,Expense Type,Expense Code,Purchase Order
http://statistics.data.gov.uk/id/local-authority/29UP,Tonbridge & Malling Borough Council,8/3/2021,0041033311/1,41033311, 2829.24,National Westminster Bank Plc,00069400,,Bank Charges,Banking Arrangements,D43QK000044222,
http://statistics.data.gov.uk/id/local-authority/29UP,Tonbridge & Malling Borough Council,8/4/2021,0011042955/1,11042955, 2200.00,Access Intelligence Media and Comms Ltd,00971600,,Information & Publicity,Information & Publicity,D32MJ000044076,110069110
http://statistics.data.gov.uk/id/local-authority/29UP,Tonbridge & Malling Borough Council,8/4/2021,0011042956/1,11042956, 158.00,BML Building Services Ltd,01505000,,BRREP Response - General,Gibson Building West,M15KBP50001997,110069135
http://statistics.data.gov.uk/id/local-authority/29UP,Tonbridge & Malling Borough Council,8/4/2021,0011042957/1,11042957, 2732.75,Chubb Fire & Security Ltd,00115400,174605362,BRREP Servicing-IntruderAlarm,Larkfield Leisure Centre,M15HDP20001939,110069131
http://statistics.data.gov.uk/id/local-authority/29UP,Tonbridge & Malling Borough Council,8/4/2021,0011042958/1,11042958, 650.00,TMD Services,01719600,,BRREP Slipstream flume ovrhaul,Larkfield Leisure Centre,M15HDP20001954,110069085
http://statistics.data.gov.uk/id/local-authority/29UP,Tonbridge & Malling Borough Council,8/4/2021,0011042959/1,11042959, 225.00,Lemon Drainage Services LTD,01761600,,BRREP Servicing - Pumping Stn,Pleasure Grounds & Open Spaces,M15HHP20001931,110068979
http://statistics.data.gov.uk/id/local-authority/29UP,Tonbridge & Malling Borough Council,8/4/2021,0011042960/1,11042960, 340.00,Willow Pumps Ltd,00114100,,BRREP Servicing - Pumping Stn,Ton Sportsgrnd Bldgs / Toilets,M15HCP20001931,110069133
http://statistics.data.gov.uk/id/local-authority/29UP,Tonbridge & Malling Borough Council,8/4/2021,0011042961/1,11042961, 20.00,The Mayor's Charity Appeal,00943800,,Hospitality,Mayoral & Other Member Support,D29LX000048003,
http://statistics.data.gov.uk/id/local-authority/29UP,Tonbridge & Malling Borough Council,8/4/2021,0011042962/1,11042962, 418.52,Chubb Fire & Security Ltd,00115400,174605362,BRREP Servicing-IntruderAlarm,Larkfield Leisure Centre,M15HDP20001939,
http://statistics.data.gov.uk/id/local-authority/29UP,Tonbridge & Malling Borough Council,8/4/2021,0011042963/1,11042963, 208.00,BML Building Services Ltd,01505000,,BRREP Response - General,Shops & Maisonettes,M15NAP50001997,
http://statistics.data.gov.uk/id/local-authority/29UP,Tonbridge & Malling Borough Council,8/4/2021,0011042964/1,11042964, 408.00,BML Building Services Ltd,01505000,,BRREP Drain and gully cleaning,PC - General,M15JAP20001975,
http://statistics.data.gov.uk/id/local-authority/29UP,Tonbridge & Malling Borough Council,8/4/2021,0011042965/1,11042965, 79.00,BML Building Services Ltd,01505000,,BRREP Response - General,PC - General,M15JAP50001997,
http://statistics.data.gov.uk/id/local-authority/29UP,Tonbridge & Malling Borough Council,8/4/2021,0011042966/1,11042966, 158.00,BML Building Services Ltd,01505000,,BRREP Response - General,PC - General,M15JAP50001997,
http://statistics.data.gov.uk/id/local-authority/29UP,Tonbridge & Malling Borough Council,8/4/2021,0011042967/1,11042967, 250.00,BML Building Services Ltd,01505000,,BRREP Drain and gully cleaning,PC - General,M15JAP20001975,
http://statistics.data.gov.uk/id/local-authority/29UP,Tonbridge & Malling Borough Council,8/4/2021,0011042968/1,11042968, 94.00,BML Building Services Ltd,01505000,,BRREP Response - General,Pleasure Grounds & Open Spaces,M15HHP50001997,
http://statistics.data.gov.uk/id/local-authority/29UP,Tonbridge & Malling Borough Council,8/4/2021,0011042969/1,11042969, 2415.00,Epiq Systems Ltd,01810600,,Legal Fees,Legal Sals&Overheads,D01ARDR0044002,
http://statistics.data.gov.uk/id/local-authority/29UP,Tonbridge & Malling Borough Council,8/4/2021,0011042970/1,11042970, 105.00,Triple S Lift Services,01344900,,BRREP Servicing - lifts,Angel Centre,M15HAP20001930,
http://statistics.data.gov.uk/id/local-authority/29UP,Tonbridge & Malling Borough Council,8/4/2021,0011042971/1,11042971, 10.00,The Mayor's Charity Appeal,00943800,,Hospitality,Mayoral & Other Member Support,D29LX000048003,
http://statistics.data.gov.uk/id/local-authority/29UP,Tonbridge & Malling Borough Council,8/4/2021,0011042972/1,11042972, 1393.00,TMS Protection Ltd,01744300,,Re-opening High Streets,Eco Dev & Reg Gen Bus Support,D52TDCV1948076,
http://statistics.data.gov.uk/id/local-authority/29UP,Tonbridge & Malling Borough Council,8/4/2021,0011042973/1,11042973, 672.00,Venn Group Ltd,00914300,,Temporary Staff,Legal Sals&Overheads,D01ARDR0011300,
http://statistics.data.gov.uk/id/local-authority/29UP,Tonbridge & Malling Borough Council,8/4/2021,0011042974/1,11042974, 2529.50,Bevan Brittan LLP,01096600,,Legal Fees,Legal Sals&Overheads,D01ARDR0044002,
http://statistics.data.gov.uk/id/local-authority/29UP,Tonbridge & Malling Borough Council,8/4/2021,0011042975/1,11042975, 1225.00,Bevan Brittan LLP,01096600,,Legal Fees,Legal Sals&Overheads,D01ARDR0044002,
http://statistics.data.gov.uk/id/local-authority/29UP,Tonbridge & Malling Borough Council,8/4/2021,0011042976/1,11042976, 1664.00,"Mogo Direct Limited,",01810800,830486529,H&CG Fund Council Specific,Eco Dev & Reg Gen Bus Support,D52TD000047027,
http://statistics.data.gov.uk/id/local-authority/29UP,Tonbridge & Malling Borough Council,8/4/2021,0011042977/1,11042977, 1650.00,KH Recruitment Ltd,01738900,,Temporary Staff,Admin & Prop Sals&Overheads,D01AADA1211300,
http://statistics.data.gov.uk/id/local-authority/29UP,Tonbridge & Malling Borough Council,8/4/2021,0011042979/1,11042979, 1320.00,KH Recruitment Ltd,01738900,,Temporary Staff,Admin & Prop Sals&Overheads,D01AADA1211300,
http://statistics.data.gov.uk/id/local-authority/29UP,Tonbridge & Malling Borough Council,8/4/2021,0011042982/1,11042982, 1650.00,KH Recruitment Ltd,01738900,,Temporary Staff,Admin & Prop Sals&Overheads,D01AADA1211300,
http://statistics.data.gov.uk/id/local-authority/29UP,Tonbridge & Malling Borough Council,8/4/2021,0011042983/1,11042983, 219.94,VisitEngland Assessment Services,01690700,,Subscriptions,Tonbridge Castle Gatehouse,B40TG000047002,
http://statistics.data.gov.uk/id/local-authority/29UP,Tonbridge & Malling Borough Council,8/4/2021,0011042984/1,11042984, 3500.00,Wayne Matthews Hairdressing,01810900,,H&CG Fund Council Specific,Eco Dev & Reg Gen Bus Support,D52TD000047027,
http://statistics.data.gov.uk/id/local-authority/29UP,Tonbridge & Malling Borough Council,8/4/2021,0011042985/1,11042985, 1650.00,KH Recruitment Ltd,01738900,,Temporary Staff,Admin & Prop Sals&Overheads,D01AADA1211300,
http://statistics.data.gov.uk/id/local-authority/29UP,Tonbridge & Malling Borough Council,8/4/2021,0011042986/1,11042986, 1650.00,KH Recruitment Ltd,01738900,,Temporary Staff,Admin & Prop Sals&Overheads,D01AADA1211300,
http://statistics.data.gov.uk/id/local-authority/29UP,Tonbridge & Malling Borough Council,8/4/2021,0021037345/1,21037345, 550.00,SWS Countryside & Landscape,01567200,,Maintenance of Grounds,Open Spaces & Amenity Areas,B22LE000020402,210056349
http://statistics.data.gov.uk/id/local-authority/29UP,Tonbridge & Malling Borough Council,8/4/2021,0021037346/1,21037346, 65.80,B&Q/Screwfix Direct,00141300,,Purchases,Leybourne Lakes Country Park,B22LK000040101,
http://statistics.data.gov.uk/id/local-authority/29UP,Tonbridge & Malling Borough Council,8/4/2021,0021037347/1,21037347, 432.00,TMS Protection Ltd,01744300,,Gates / Security,Leybourne Lakes Country Park,B22LK000044017,
http://statistics.data.gov.uk/id/local-authority/29UP,Tonbridge & Malling Borough Council,8/4/2021,0021037348/1,21037348, 199.25,Burslem Memorials Ltd,01013400,,Maintenance of Grounds,Cemetery,B26MP000020402,210056374
http://statistics.data.gov.uk/id/local-authority/29UP,Tonbridge & Malling Borough Council,8/4/2021,0021037349/10,21037349, 4341.07,Landscape Services Ltd,00057600,,Grounds Maintenance Contract,Cemetery,B26MP000050103,
http://statistics.data.gov.uk/id/local-authority/29UP,Tonbridge & Malling Borough Council,8/4/2021,0021037349/11,21037349, 205.04,Landscape Services Ltd,00057600,,Grounds Maintenance Contract,Churchyards St Peter & St Paul,B28MX000050103,
http://statistics.data.gov.uk/id/local-authority/29UP,Tonbridge & Malling Borough Council,8/4/2021,0021037349/12,21037349, 149.11,Landscape Services Ltd,00057600,,Grounds Maintenance Contract,Churchyards St Stephens,B28MY000050103,
http://statistics.data.gov.uk/id/local-authority/29UP,Tonbridge & Malling Borough Council,8/4/2021,0021037349/13,21037349, 164.81,Landscape Services Ltd,00057600,,Grounds Maintenance Contract,Grounds,D21FF000050103,
http://statistics.data.gov.uk/id/local-authority/29UP,Tonbridge & Malling Borough Council,8/4/2021,0021037349/14,21037349, 312.58,Landscape Services Ltd,00057600,,Maintenance of Grounds,Parking Off-Street,E10HA000020402,
http://statistics.data.gov.uk/id/local-authority/29UP,Tonbridge & Malling Borough Council,8/4/2021,0021037349/15,21037349, 980.27,Landscape Services Ltd,00057600,,Maintenance of Grounds,Parking Off-Street,E10HAE00120402,
http://statistics.data.gov.uk/id/local-authority/29UP,Tonbridge & Malling Borough Council,8/4/2021,0021037349/16,21037349, 93.08,Landscape Services Ltd,00057600,,Maintenance of Grounds,Parking Off-Street,E10HAE00220402,
http://statistics.data.gov.uk/id/local-authority/29UP,Tonbridge & Malling Borough Council,8/4/2021,0021037349/17,21037349, 84.41,Landscape Services Ltd,00057600,,Maintenance of Grounds,Parking Off-Street,E10HAE00320402,
http://statistics.data.gov.uk/id/local-authority/29UP,Tonbridge & Malling Borough Council,8/4/2021,0021037349/18,21037349, 21.05,Landscape Services Ltd,00057600,,Maintenance of Grounds,Parking Off-Street,E10HAE00420402,
http://statistics.data.gov.uk/id/local-authority/29UP,Tonbridge & Malling Borough Council,8/4/2021,0021037349/19,21037349, 0.54,Landscape Services Ltd,00057600,,Maintenance of Grounds,Parking Off-Street,E10HAE00520402,
http://statistics.data.gov.uk/id/local-authority/29UP,Tonbridge & Malling Borough Council,8/4/2021,0021037349/20,21037349, 58.93,Landscape Services Ltd,00057600,,Maintenance of Grounds,Parking Off-Street,E10HAE00620402,
http://statistics.data.gov.uk/id/local-authority/29UP,Tonbridge & Malling Borough Council,8/4/2021,0021037349/21,21037349, 137.58,Landscape Services Ltd,00057600,,Maintenance of Grounds,Parking Off-Street,E10HAE01020402,
http://statistics.data.gov.uk/id/local-authority/29UP,Tonbridge & Malling Borough Council,8/4/2021,0021037349/22,21037349, 3.05,Landscape Services Ltd,00057600,,Maintenance of Grounds,Parking Off-Street,E10HAE01220402,
http://statistics.data.gov.uk/id/local-authority/29UP,Tonbridge & Malling Borough Council,8/4/2021,0021037349/23,21037349, 6.73,Landscape Services Ltd,00057600,,Maintenance of Grounds,Parking Off-Street,E10HAE01320402,
http://statistics.data.gov.uk/id/local-authority/29UP,Tonbridge & Malling Borough Council,8/4/2021,0021037349/24,21037349, 27.99,Landscape Services Ltd,00057600,,Maintenance of Grounds,Parking Off-Street,E10HAE01520402,
http://statistics.data.gov.uk/id/local-authority/29UP,Tonbridge & Malling Borough Council,8/4/2021,0021037349/25,21037349, 54.69,Landscape Services Ltd,00057600,,Maintenance of Grounds,Parking Off-Street,E10HAE01620402,
http://statistics.data.gov.uk/id/local-authority/29UP,Tonbridge & Malling Borough Council,8/4/2021,0021037349/26,21037349, 13.65,Landscape Services Ltd,00057600,,Maintenance of Grounds,Parking Off-Street,E10HAE02120402,
http://statistics.data.gov.uk/id/local-authority/29UP,Tonbridge & Malling Borough Council,8/4/2021,0021037349/27,21037349, 21.74,Landscape Services Ltd,00057600,,Maintenance of Grounds,Parking Off-Street,E10HAE02320402,
http://statistics.data.gov.uk/id/local-authority/29UP,Tonbridge & Malling Borough Council,8/4/2021,0021037349/28,21037349, 83.33,Landscape Services Ltd,00057600,,Maintenance of Grounds,Parking Off-Street,E10HAE02820402,
http://statistics.data.gov.uk/id/local-authority/29UP,Tonbridge & Malling Borough Council,8/4/2021,0021037349/29,21037349, 22.56,Landscape Services Ltd,00057600,,Maintenance of Grounds,Parking Off-Street,E10HAE04020402,
http://statistics.data.gov.uk/id/local-authority/29UP,Tonbridge & Malling Borough Council,8/4/2021,0021037349/3,21037349, 20341.80,Landscape Services Ltd,00057600,,Grounds Maintenance Contract,Sports Grounds,B13ET000050103,
http://statistics.data.gov.uk/id/local-authority/29UP,Tonbridge & Malling Borough Council,8/4/2021,0021037349/30,21037349, 74.40,Landscape Services Ltd,00057600,,Maintenance of Grounds,Parking Off-Street,E10HAE04520402,
http://statistics.data.gov.uk/id/local-authority/29UP,Tonbridge & Malling Borough Council,8/4/2021,0021037349/4,21037349, 7076.24,Landscape Services Ltd,00057600,,Grounds Maintenance Contract,Tonbridge Castle Grounds,B22LB000050103,
http://statistics.data.gov.uk/id/local-authority/29UP,Tonbridge & Malling Borough Council,8/4/2021,0021037349/5,21037349, 53.86,Landscape Services Ltd,00057600,,Trade Refuse Charges,Haysden Country Park,B22LC000044008,
http://statistics.data.gov.uk/id/local-authority/29UP,Tonbridge & Malling Borough Council,8/4/2021,0021037349/6,21037349, 462.07,Landscape Services Ltd,00057600,,Litter Collection,Haysden Country Park,B22LC000044061,
http://statistics.data.gov.uk/id/local-authority/29UP,Tonbridge & Malling Borough Council,8/4/2021,0021037349/7,21037349, 1600.71,Landscape Services Ltd,00057600,,Grounds Maintenance Contract,Haysden Country Park,B22LC000050103,
http://statistics.data.gov.uk/id/local-authority/29UP,Tonbridge & Malling Borough Council,8/4/2021,0021037349/8,21037349, 554.05,Landscape Services Ltd,00057600,,Grounds Maintenance Contract,Haysden Country Park,B22LC000050103,
http://statistics.data.gov.uk/id/local-authority/29UP,Tonbridge & Malling Borough Council,8/4/2021,0021037349/9,21037349, 11232.13,Landscape Services Ltd,00057600,,Grounds Maintenance Contract,Open Spaces & Amenity Areas,B22LE000050103,
http://statistics.data.gov.uk/id/local-authority/29UP,Tonbridge & Malling Borough Council,8/4/2021,0021037350/1,21037350, 20.82,Amazon EU SARL,01738400,,Purchases,St Scene & Leis Sals&Overheads,D01AGDG0440101,
http://statistics.data.gov.uk/id/local-authority/29UP,Tonbridge & Malling Borough Council,8/4/2021,0021037351/1,21037351, 55.30,B&Q/Screwfix Direct,00141300,,Maintenance of Grounds,Haysden Country Park,B22LC000020402,
http://statistics.data.gov.uk/id/local-authority/29UP,Tonbridge & Malling Borough Council,8/4/2021,0021037352/1,21037352, 31.00,Lawrence Container Hire Ltd,01033800,,Maintenance of Grounds,Leybourne Lakes Country Park,B22LK000020402,
http://statistics.data.gov.uk/id/local-authority/29UP,Tonbridge & Malling Borough Council,8/4/2021,0021037353/1,21037353, 2340.00,Treework,00560700,,Health & Safety - Trees,Countryside/Woodland Mgt,B22LG000044045,210056389
http://statistics.data.gov.uk/id/local-authority/29UP,Tonbridge & Malling Borough Council,8/4/2021,0021037354/1,21037354, 448.56,HAGS SMP Ltd,00793600,,Maintenance of Play Equipment,Open Spaces & Amenity Areas,B22LE000020503,210056233
http://statistics.data.gov.uk/id/local-authority/29UP,Tonbridge & Malling Borough Council,8/4/2021,0021037356/1,21037356, 26.05,KCS,00054200,,Purchases,Haysden Country Park,B22LC000040101,210056405
http://statistics.data.gov.uk/id/local-authority/29UP,Tonbridge & Malling Borough Council,8/4/2021,0021037357/1,21037357, 652.00,Streetmaster (South Wales) Ltd,00222100,,Maintenance of Grounds,Open Spaces & Amenity Areas,B22LE000020402,210056210
http://statistics.data.gov.uk/id/local-authority/29UP,Tonbridge & Malling Borough Council,8/4/2021,0021037358/1,21037358, 63.00,Streetmaster (South Wales) Ltd,00222100,,Maintenance of Grounds,Tonbridge Castle Grounds,B22LB000020402,210056313
http://statistics.data.gov.uk/id/local-authority/29UP,Tonbridge & Malling Borough Council,8/4/2021,0021037359/1,21037359, 80.00,Streetmaster (South Wales) Ltd,00222100,,Maintenance of Grounds,Sports Grounds,B13ET000020402,210056386
http://statistics.data.gov.uk/id/local-authority/29UP,Tonbridge & Malling Borough Council,8/4/2021,0021037360/1,21037360, 652.00,Streetmaster (South Wales) Ltd,00222100,,Maintenance of Grounds,Sports Grounds,B13ET000020402,210056291
http://statistics.data.gov.uk/id/local-authority/29UP,Tonbridge & Malling Borough Council,8/4/2021,0021037361/1,21037361, 205.00,Streetmaster (South Wales) Ltd,00222100,,Maintenance of Grounds,Sports Grounds,B13ET000020402,210056290
http://statistics.data.gov.uk/id/local-authority/29UP,Tonbridge & Malling Borough Council,8/4/2021,0021037362/1,21037362, 735.00,Streetmaster (South Wales) Ltd,00222100,,Maintenance of Grounds,Tonbridge Castle Grounds,B22LB000020402,210056272
http://statistics.data.gov.uk/id/local-authority/29UP,Tonbridge & Malling Borough Council,8/4/2021,0021037363/1,21037363, 544.98,G.L. & R.G. Bourne,00737500,,Maintenance of Grounds,Haysden Country Park,B22LC000020402,
http://statistics.data.gov.uk/id/local-authority/29UP,Tonbridge & Malling Borough Council,8/4/2021,0021037364/1,21037364, 4.80,G.L. & R.G. Bourne,00737500,,Gates / Security,Haysden Country Park,B22LC000044017,
http://statistics.data.gov.uk/id/local-authority/29UP,Tonbridge & Malling Borough Council,8/4/2021,0021037365/1,21037365, 74.71,G.L. & R.G. Bourne,00737500,,Gates / Security,Haysden Country Park,B22LC000044017,
http://statistics.data.gov.uk/id/local-authority/29UP,Tonbridge & Malling Borough Council,8/4/2021,0021037366/1,21037366, 35.00,G.L. & R.G. Bourne,00737500,,Gates / Security,Haysden Country Park,B22LC000044017,
http://statistics.data.gov.uk/id/local-authority/29UP,Tonbridge & Malling Borough Council,8/4/2021,0021037367/1,21037367, 9.00,G.L. & R.G. Bourne,00737500,,Gates / Security,Haysden Country Park,B22LC000044017,
http://statistics.data.gov.uk/id/local-authority/29UP,Tonbridge & Malling Borough Council,8/4/2021,0021037368/1,21037368, 432.00,TMS Protection Ltd,01744300,,Gates / Security,Leybourne Lakes Country Park,B22LK000044017,
http://statistics.data.gov.uk/id/local-authority/29UP,Tonbridge & Malling Borough Council,8/4/2021,0022025643/1,22025643, 763.31,G2 Recruitment Solutions,01786000,,Temporary Staff,Env Hlth & Hsg Sals&Overheads,D01AVDV0711300,
http://statistics.data.gov.uk/id/local-authority/29UP,Tonbridge & Malling Borough Council,8/4/2021,0022025644/1,22025644, 1239.50,Vivid Resourcing,01773700,,Temporary Staff,St Scene & Leis Sals&Overheads,D01AGDG0911300,
http://statistics.data.gov.uk/id/local-authority/29UP,Tonbridge & Malling Borough Council,8/4/2021,0022025645/1,22025645, 354.43,Urbaser LTD,01718800,,Maintenance of Grounds,Sports Grounds,B13ET000020402,
http://statistics.data.gov.uk/id/local-authority/29UP,Tonbridge & Malling Borough Council,8/4/2021,0022025645/10,22025645, 55.10,Urbaser LTD,01718800,,Maintenance of Grounds,Grounds,D21FF000020402,
http://statistics.data.gov.uk/id/local-authority/29UP,Tonbridge & Malling Borough Council,8/4/2021,0022025645/11,22025645, 168.53,Urbaser LTD,01718800,,Maintenance of Grounds,Parking Off-Street,E10HA000020402,
http://statistics.data.gov.uk/id/local-authority/29UP,Tonbridge & Malling Borough Council,8/4/2021,0022025645/12,22025645, 4288.11,Urbaser LTD,01718800,,Maintenance of Grounds,Parking Off-Street,E10HAE00120402,
http://statistics.data.gov.uk/id/local-authority/29UP,Tonbridge & Malling Borough Council,8/4/2021,0022025645/13,22025645, 461.92,Urbaser LTD,01718800,,Maintenance of Grounds,Parking Off-Street,E10HAE00220402,
http://statistics.data.gov.uk/id/local-authority/29UP,Tonbridge & Malling Borough Council,8/4/2021,0022025645/14,22025645, 288.97,Urbaser LTD,01718800,,Maintenance of Grounds,Parking Off-Street,E10HAE00320402,
http://statistics.data.gov.uk/id/local-authority/29UP,Tonbridge & Malling Borough Council,8/4/2021,0022025645/15,22025645, 1511.29,Urbaser LTD,01718800,,Maintenance of Grounds,Parking Off-Street,E10HAE00420402,
http://statistics.data.gov.uk/id/local-authority/29UP,Tonbridge & Malling Borough Council,8/4/2021,0022025645/16,22025645, 251.14,Urbaser LTD,01718800,,Maintenance of Grounds,Parking Off-Street,E10HAE00520402,
http://statistics.data.gov.uk/id/local-authority/29UP,Tonbridge & Malling Borough Council,8/4/2021,0022025645/17,22025645, 936.67,Urbaser LTD,01718800,,Maintenance of Grounds,Parking Off-Street,E10HAE00620402,
http://statistics.data.gov.uk/id/local-authority/29UP,Tonbridge & Malling Borough Council,8/4/2021,0022025645/18,22025645, 7.90,Urbaser LTD,01718800,,Maintenance of Grounds,Parking Off-Street,E10HAE00820402,
http://statistics.data.gov.uk/id/local-authority/29UP,Tonbridge & Malling Borough Council,8/4/2021,0022025645/19,22025645, 7.80,Urbaser LTD,01718800,,Maintenance of Grounds,Parking Off-Street,E10HAE00920402,
http://statistics.data.gov.uk/id/local-authority/29UP,Tonbridge & Malling Borough Council,8/4/2021,0022025645/2,22025645, 75.43,Urbaser LTD,01718800,,Maintenance of Grounds,Poult Wood Golf Centre,B21KE000020402,
http://statistics.data.gov.uk/id/local-authority/29UP,Tonbridge & Malling Borough Council,8/4/2021,0022025645/20,22025645, 18.51,Urbaser LTD,01718800,,Maintenance of Grounds,Parking Off-Street,E10HAE01020402,
http://statistics.data.gov.uk/id/local-authority/29UP,Tonbridge & Malling Borough Council,8/4/2021,0022025645/21,22025645, 87.95,Urbaser LTD,01718800,,Maintenance of Grounds,Parking Off-Street,E10HAE01120402,
http://statistics.data.gov.uk/id/local-authority/29UP,Tonbridge & Malling Borough Council,8/4/2021,0022025645/22,22025645, 55.34,Urbaser LTD,01718800,,Maintenance of Grounds,Parking Off-Street,E10HAE01220402,
http://statistics.data.gov.uk/id/local-authority/29UP,Tonbridge & Malling Borough Council,8/4/2021,0022025645/23,22025645, 1049.30,Urbaser LTD,01718800,,Maintenance of Grounds,Parking Off-Street,E10HAE01320402,
http://statistics.data.gov.uk/id/local-authority/29UP,Tonbridge & Malling Borough Council,8/4/2021,0022025645/24,22025645, 79.80,Urbaser LTD,01718800,,Maintenance of Grounds,Parking Off-Street,E10HAE01420402,
http://statistics.data.gov.uk/id/local-authority/29UP,Tonbridge & Malling Borough Council,8/4/2021,0022025645/25,22025645, 245.93,Urbaser LTD,01718800,,Maintenance of Grounds,Parking Off-Street,E10HAE01520402,
http://statistics.data.gov.uk/id/local-authority/29UP,Tonbridge & Malling Borough Council,8/4/2021,0022025645/26,22025645, 264.50,Urbaser LTD,01718800,,Maintenance of Grounds,Parking Off-Street,E10HAE01620402,
http://statistics.data.gov.uk/id/local-authority/29UP,Tonbridge & Malling Borough Council,8/4/2021,0022025645/27,22025645, 780.85,Urbaser LTD,01718800,,Maintenance of Grounds,Parking Off-Street,E10HAE01720402,
http://statistics.data.gov.uk/id/local-authority/29UP,Tonbridge & Malling Borough Council,8/4/2021,0022025645/28,22025645, 224.12,Urbaser LTD,01718800,,Maintenance of Grounds,Parking Off-Street,E10HAE01920402,
http://statistics.data.gov.uk/id/local-authority/29UP,Tonbridge & Malling Borough Council,8/4/2021,0022025645/29,22025645, 492.32,Urbaser LTD,01718800,,Maintenance of Grounds,Parking Off-Street,E10HAE02020402,
http://statistics.data.gov.uk/id/local-authority/29UP,Tonbridge & Malling Borough Council,8/4/2021,0022025645/3,22025645, 31.13,Urbaser LTD,01718800,,Maintenance of Grounds,Haysden Country Park,B22LC000020402,
http://statistics.data.gov.uk/id/local-authority/29UP,Tonbridge & Malling Borough Council,8/4/2021,0022025645/30,22025645, 17.09,Urbaser LTD,01718800,,Maintenance of Grounds,Parking Off-Street,E10HAE02120402,
http://statistics.data.gov.uk/id/local-authority/29UP,Tonbridge & Malling Borough Council,8/4/2021,0022025645/31,22025645, 112.54,Urbaser LTD,01718800,,Maintenance of Grounds,Parking Off-Street,E10HAE02220402,
http://statistics.data.gov.uk/id/local-authority/29UP,Tonbridge & Malling Borough Council,8/4/2021,0022025645/32,22025645, 946.10,Urbaser LTD,01718800,,Maintenance of Grounds,Parking Off-Street,E10HAE02320402,
http://statistics.data.gov.uk/id/local-authority/29UP,Tonbridge & Malling Borough Council,8/4/2021,0022025645/33,22025645, 2.44,Urbaser LTD,01718800,,Maintenance of Grounds,Parking Off-Street,E10HAE02720402,
http://statistics.data.gov.uk/id/local-authority/29UP,Tonbridge & Malling Borough Council,8/4/2021,0022025645/34,22025645, 343.77,Urbaser LTD,01718800,,Maintenance of Grounds,Parking Off-Street,E10HAE02820402,
http://statistics.data.gov.uk/id/local-authority/29UP,Tonbridge & Malling Borough Council,8/4/2021,0022025645/35,22025645, 6.19,Urbaser LTD,01718800,,Maintenance of Grounds,Parking Off-Street,E10HAE02920402,
http://statistics.data.gov.uk/id/local-authority/29UP,Tonbridge & Malling Borough Council,8/4/2021,0022025645/36,22025645, 36.43,Urbaser LTD,01718800,,Maintenance of Grounds,Parking Off-Street,E10HAE03020402,
http://statistics.data.gov.uk/id/local-authority/29UP,Tonbridge & Malling Borough Council,8/4/2021,0022025645/37,22025645, 31.00,Urbaser LTD,01718800,,Maintenance of Grounds,Parking Off-Street,E10HAE03120402,
http://statistics.data.gov.uk/id/local-authority/29UP,Tonbridge & Malling Borough Council,8/4/2021,0022025645/38,22025645, 657.32,Urbaser LTD,01718800,,Maintenance of Grounds,Parking Off-Street,E10HAE04020402,
http://statistics.data.gov.uk/id/local-authority/29UP,Tonbridge & Malling Borough Council,8/4/2021,0022025645/39,22025645, 455.90,Urbaser LTD,01718800,,Maintenance of Grounds,Parking Off-Street,E10HAE04220402,
http://statistics.data.gov.uk/id/local-authority/29UP,Tonbridge & Malling Borough Council,8/4/2021,0022025645/4,22025645, 23.91,Urbaser LTD,01718800,,Dog Bin Emptying,Haysden Country Park,B22LC000044012,
http://statistics.data.gov.uk/id/local-authority/29UP,Tonbridge & Malling Borough Council,8/4/2021,0022025645/40,22025645, 1308.55,Urbaser LTD,01718800,,Maintenance of Grounds,Parking Off-Street,E10HAE04520402,
http://statistics.data.gov.uk/id/local-authority/29UP,Tonbridge & Malling Borough Council,8/4/2021,0022025645/41,22025645, 81773.77,Urbaser LTD,01718800,,Contract Payments,Refuse Collection,H20SA000054001,
http://statistics.data.gov.uk/id/local-authority/29UP,Tonbridge & Malling Borough Council,8/4/2021,0022025645/42,22025645, 865.70,Urbaser LTD,01718800,,Responsible Dog Ownership,Street Scene,H23SD000044050,
http://statistics.data.gov.uk/id/local-authority/29UP,Tonbridge & Malling Borough Council,8/4/2021,0022025645/43,22025645, 51717.72,Urbaser LTD,01718800,,Contract Payments,Street Scene,H23SD000054001,
http://statistics.data.gov.uk/id/local-authority/29UP,Tonbridge & Malling Borough Council,8/4/2021,0022025645/44,22025645, 819.23,Urbaser LTD,01718800,,General Maintenance,Dry Recycling,H34SR000020301,
http://statistics.data.gov.uk/id/local-authority/29UP,Tonbridge & Malling Borough Council,8/4/2021,0022025645/45,22025645, 73613.88,Urbaser LTD,01718800,,Contract Payments,Dry Recycling,H34SR000054001,
http://statistics.data.gov.uk/id/local-authority/29UP,Tonbridge & Malling Borough Council,8/4/2021,0022025645/46,22025645, 3803.64,Urbaser LTD,01718800,,Bring Sites Mixed Recycling,Dry Recycling,H34SR000054026,
http://statistics.data.gov.uk/id/local-authority/29UP,Tonbridge & Malling Borough Council,8/4/2021,0022025645/47,22025645, 28804.34,Urbaser LTD,01718800,,Contract Payments,Food Recycling,H34SS000054001,
http://statistics.data.gov.uk/id/local-authority/29UP,Tonbridge & Malling Borough Council,8/4/2021,0022025645/48,22025645, 16367.16,Urbaser LTD,01718800,,Contract Payments,Garden Waste Recycling,H34ST000054001,
http://statistics.data.gov.uk/id/local-authority/29UP,Tonbridge & Malling Borough Council,8/4/2021,0022025645/5,22025645, 677.66,Urbaser LTD,01718800,,Maintenance of Grounds,Open Spaces & Amenity Areas,B22LE000020402,
http://statistics.data.gov.uk/id/local-authority/29UP,Tonbridge & Malling Borough Council,8/4/2021,0022025645/6,22025645, 12.75,Urbaser LTD,01718800,,Dog Bin Emptying,Open Spaces & Amenity Areas,B22LE000044012,
http://statistics.data.gov.uk/id/local-authority/29UP,Tonbridge & Malling Borough Council,8/4/2021,0022025645/7,22025645, 22.00,Urbaser LTD,01718800,,Maintenance of Grounds,Countryside/Woodland Mgt,B22LG000020402,
http://statistics.data.gov.uk/id/local-authority/29UP,Tonbridge & Malling Borough Council,8/4/2021,0022025645/8,22025645, 66.06,Urbaser LTD,01718800,,Maintenance of Grounds,Leybourne Lakes Country Park,B22LK000020402,
http://statistics.data.gov.uk/id/local-authority/29UP,Tonbridge & Malling Borough Council,8/4/2021,0022025645/9,22025645, 23.91,Urbaser LTD,01718800,,Dog Bin Emptying,Leybourne Lakes Country Park,B22LK000044012,
http://statistics.data.gov.uk/id/local-authority/29UP,Tonbridge & Malling Borough Council,8/4/2021,0022025646/1,22025646, 402.36,Scottish Water Business Stream Ltd,01641100,,Water Charges (Metered),Public Conveniences,H22SCH00624001,
http://statistics.data.gov.uk/id/local-authority/29UP,Tonbridge & Malling Borough Council,8/4/2021,0022025647/1,22025647, 207.45,Scottish Water Business Stream Ltd,01641100,,Water Charges (Metered),Public Conveniences,H22SCH00624001,
http://statistics.data.gov.uk/id/local-authority/29UP,Tonbridge & Malling Borough Council,8/4/2021,0022025648/1,22025648, 41.92,B&Q/Screwfix Direct,00141300,,Protective Clothing,St Scene & Leis Sals&Overheads,D01AG000042001,
http://statistics.data.gov.uk/id/local-authority/29UP,Tonbridge & Malling Borough Council,8/4/2021,0031018074/1,31018074, 62.68,KelticLimited,01000400,,Uniforms,Parking Off-Street,E10HA000042002,310042685
http://statistics.data.gov.uk/id/local-authority/29UP,Tonbridge & Malling Borough Council,8/4/2021,0031018074/2,31018074, 34.76,KelticLimited,01000400,,Uniforms,Parking Off-Street,E10HA000042002,310042685
http://statistics.data.gov.uk/id/local-authority/29UP,Tonbridge & Malling Borough Council,8/4/2021,0031018074/3,31018074, 52.14,KelticLimited,01000400,,Uniforms,Parking On-Street,E10HD000042002,310042685
http://statistics.data.gov.uk/id/local-authority/29UP,Tonbridge & Malling Borough Council,8/4/2021,0031018074/4,31018074, 146.27,KelticLimited,01000400,,Uniforms,Parking On-Street,E10HD000042002,310042685
http://statistics.data.gov.uk/id/local-authority/29UP,Tonbridge & Malling Borough Council,8/4/2021,0031018075/1,31018075, 156.30,British Telecommunications Plc,00012800,,Maintenance - General,Security Services Management,E09GA000040135,
http://statistics.data.gov.uk/id/local-authority/29UP,Tonbridge & Malling Borough Council,8/4/2021,0031018076/1,31018076, 37.20,Beal UK LTD,01235500,,Advertising General,Parking Off-Street,E10HAZ99944216,310042637
http://statistics.data.gov.uk/id/local-authority/29UP,Tonbridge & Malling Borough Council,8/4/2021,0031018076/2,31018076, 37.20,Beal UK LTD,01235500,,Advertising General,Parking On-Street,E10HDZ99944216,310042637
http://statistics.data.gov.uk/id/local-authority/29UP,Tonbridge & Malling Borough Council,8/4/2021,0031018084/1,31018084, 500.00,Traffic Enforcement Centre,00604200,,Adjudication & Enforcement Ser,Parking Off-Street,E10HA000044230,
http://statistics.data.gov.uk/id/local-authority/29UP,Tonbridge & Malling Borough Council,8/4/2021,0031018084/2,31018084, 500.00,Traffic Enforcement Centre,00604200,,Adjudication & Enforcement Ser,Parking On-Street,E10HD000044230,
http://statistics.data.gov.uk/id/local-authority/29UP,Tonbridge & Malling Borough Council,8/4/2021,0031018085/1,31018085, 3276.27,CDER Group,01773300,,Adjudication & Enforcement Ser,Parking Off-Street,E10HA000044230,
http://statistics.data.gov.uk/id/local-authority/29UP,Tonbridge & Malling Borough Council,8/4/2021,0031018088/1,31018088, 475.00,Archway Highway Services Ltd,01398000,,Premises Repairs & Maintenance,Parking On-Street,E10HD000020601,310042671
http://statistics.data.gov.uk/id/local-authority/29UP,Tonbridge & Malling Borough Council,8/4/2021,0031018088/2,31018088, 225.00,Archway Highway Services Ltd,01398000,,Premises Repairs & Maintenance,Parking On-Street,E10HD000020601,310042671
http://statistics.data.gov.uk/id/local-authority/29UP,Tonbridge & Malling Borough Council,8/4/2021,0031018089/1,31018089, 200.00,Archway Highway Services Ltd,01398000,,Premises Repairs & Maintenance,Parking Off-Street,E10HA000020601,310042687
http://statistics.data.gov.uk/id/local-authority/29UP,Tonbridge & Malling Borough Council,8/4/2021,0031018089/2,31018089, 165.00,Archway Highway Services Ltd,01398000,,Premises Repairs & Maintenance,Parking Off-Street,E10HA000020601,310042687
http://statistics.data.gov.uk/id/local-authority/29UP,Tonbridge & Malling Borough Council,8/4/2021,0031018090/1,31018090, 410.00,Wellden Land Surveys,01410600,,Professional Fees,Boro Drainage & Land Drainage,E20MA000044001,310042644
http://statistics.data.gov.uk/id/local-authority/29UP,Tonbridge & Malling Borough Council,8/4/2021,0032009202/1,32009202, 2830.59,Arcadis Consulting (UK) Limited,01760300,,Professional Fees,Planning Policy,A01AFBORO44001,320003208
http://statistics.data.gov.uk/id/local-authority/29UP,Tonbridge & Malling Borough Council,8/4/2021,0032009213/1,32009213, 166.56,KM Media Group Ltd,00053900,,Advertising General,Development Management,A01ABZ99944216,320003319
http://statistics.data.gov.uk/id/local-authority/29UP,Tonbridge & Malling Borough Council,8/4/2021,0041033307/1,41033307, 63.90,Contract Security Services Ltd,00964700,,Cash Collection,Haysden Country Park,B22LC000044007,
http://statistics.data.gov.uk/id/local-authority/29UP,Tonbridge & Malling Borough Council,8/4/2021,0041033307/10,41033307, 191.70,Contract Security Services Ltd,00964700,,Cash Collection,Parking Off-Street,E10HAE00144007,
http://statistics.data.gov.uk/id/local-authority/29UP,Tonbridge & Malling Borough Council,8/4/2021,0041033307/11,41033307, 191.70,Contract Security Services Ltd,00964700,,Cash Collection,Parking Off-Street,E10HAE00144007,
http://statistics.data.gov.uk/id/local-authority/29UP,Tonbridge & Malling Borough Council,8/4/2021,0041033307/12,41033307, 191.70,Contract Security Services Ltd,00964700,,Cash Collection,Parking Off-Street,E10HAE00144007,
http://statistics.data.gov.uk/id/local-authority/29UP,Tonbridge & Malling Borough Council,8/4/2021,0041033307/13,41033307, 191.70,Contract Security Services Ltd,00964700,,Cash Collection,Parking Off-Street,E10HAE00144007,
http://statistics.data.gov.uk/id/local-authority/29UP,Tonbridge & Malling Borough Council,8/4/2021,0041033307/14,41033307, 127.80,Contract Security Services Ltd,00964700,,Cash Collection,Parking Off-Street,E10HAE00144007,
http://statistics.data.gov.uk/id/local-authority/29UP,Tonbridge & Malling Borough Council,8/4/2021,0041033307/15,41033307, 31.95,Contract Security Services Ltd,00964700,,Cash Collection,Parking Off-Street,E10HAE00344007,
http://statistics.data.gov.uk/id/local-authority/29UP,Tonbridge & Malling Borough Council,8/4/2021,0041033307/16,41033307, 191.70,Contract Security Services Ltd,00964700,,Cash Collection,Parking Off-Street,E10HAE00444007,
http://statistics.data.gov.uk/id/local-authority/29UP,Tonbridge & Malling Borough Council,8/4/2021,0041033307/17,41033307, 95.85,Contract Security Services Ltd,00964700,,Cash Collection,Parking Off-Street,E10HAE00444007,
http://statistics.data.gov.uk/id/local-authority/29UP,Tonbridge & Malling Borough Council,8/4/2021,0041033307/18,41033307, 191.70,Contract Security Services Ltd,00964700,,Cash Collection,Parking Off-Street,E10HAE00444007,
http://statistics.data.gov.uk/id/local-authority/29UP,Tonbridge & Malling Borough Council,8/4/2021,0041033307/19,41033307, 191.70,Contract Security Services Ltd,00964700,,Cash Collection,Parking Off-Street,E10HAE00444007,
http://statistics.data.gov.uk/id/local-authority/29UP,Tonbridge & Malling Borough Council,8/4/2021,0041033307/2,41033307, 63.90,Contract Security Services Ltd,00964700,,Cash Collection,Haysden Country Park,B22LC000044007,
http://statistics.data.gov.uk/id/local-authority/29UP,Tonbridge & Malling Borough Council,8/4/2021,0041033307/20,41033307, 127.80,Contract Security Services Ltd,00964700,,Cash Collection,Parking Off-Street,E10HAE00544007,
http://statistics.data.gov.uk/id/local-authority/29UP,Tonbridge & Malling Borough Council,8/4/2021,0041033307/21,41033307, 127.80,Contract Security Services Ltd,00964700,,Cash Collection,Parking Off-Street,E10HAE00544007,
http://statistics.data.gov.uk/id/local-authority/29UP,Tonbridge & Malling Borough Council,8/4/2021,0041033307/22,41033307, 15.98,Contract Security Services Ltd,00964700,,Cash Collection,Parking Off-Street,E10HAE00644007,
http://statistics.data.gov.uk/id/local-authority/29UP,Tonbridge & Malling Borough Council,8/4/2021,0041033307/23,41033307, 15.98,Contract Security Services Ltd,00964700,,Cash Collection,Parking Off-Street,E10HAE00644007,
http://statistics.data.gov.uk/id/local-authority/29UP,Tonbridge & Malling Borough Council,8/4/2021,0041033307/24,41033307, 95.85,Contract Security Services Ltd,00964700,,Cash Collection,Parking Off-Street,E10HAE01144007,
http://statistics.data.gov.uk/id/local-authority/29UP,Tonbridge & Malling Borough Council,8/4/2021,0041033307/25,41033307, 31.95,Contract Security Services Ltd,00964700,,Cash Collection,Parking Off-Street,E10HAE01244007,
http://statistics.data.gov.uk/id/local-authority/29UP,Tonbridge & Malling Borough Council,8/4/2021,0041033307/26,41033307, 191.70,Contract Security Services Ltd,00964700,,Cash Collection,Parking Off-Street,E10HAE01344007,
http://statistics.data.gov.uk/id/local-authority/29UP,Tonbridge & Malling Borough Council,8/4/2021,0041033307/27,41033307, 191.70,Contract Security Services Ltd,00964700,,Cash Collection,Parking Off-Street,E10HAE01344007,
http://statistics.data.gov.uk/id/local-authority/29UP,Tonbridge & Malling Borough Council,8/4/2021,0041033307/28,41033307, 31.95,Contract Security Services Ltd,00964700,,Cash Collection,Parking Off-Street,E10HAE01444007,
http://statistics.data.gov.uk/id/local-authority/29UP,Tonbridge & Malling Borough Council,8/4/2021,0041033307/29,41033307, 95.85,Contract Security Services Ltd,00964700,,Cash Collection,Parking Off-Street,E10HAE01744007,
http://statistics.data.gov.uk/id/local-authority/29UP,Tonbridge & Malling Borough Council,8/4/2021,0041033307/3,41033307, 31.95,Contract Security Services Ltd,00964700,,Cash Collection,Haysden Country Park,B22LC000044007,
http://statistics.data.gov.uk/id/local-authority/29UP,Tonbridge & Malling Borough Council,8/4/2021,0041033307/30,41033307, 95.85,Contract Security Services Ltd,00964700,,Cash Collection,Parking Off-Street,E10HAE01744007,
http://statistics.data.gov.uk/id/local-authority/29UP,Tonbridge & Malling Borough Council,8/4/2021,0041033307/31,41033307, 31.95,Contract Security Services Ltd,00964700,,Cash Collection,Parking Off-Street,E10HAE02044007,
http://statistics.data.gov.uk/id/local-authority/29UP,Tonbridge & Malling Borough Council,8/4/2021,0041033307/32,41033307, 95.85,Contract Security Services Ltd,00964700,,Cash Collection,Parking Off-Street,E10HAE02244007,
http://statistics.data.gov.uk/id/local-authority/29UP,Tonbridge & Malling Borough Council,8/4/2021,0041033307/33,41033307, 191.70,Contract Security Services Ltd,00964700,,Cash Collection,Parking Off-Street,E10HAE02344007,
http://statistics.data.gov.uk/id/local-authority/29UP,Tonbridge & Malling Borough Council,8/4/2021,0041033307/34,41033307, 191.70,Contract Security Services Ltd,00964700,,Cash Collection,Parking Off-Street,E10HAE02344007,
http://statistics.data.gov.uk/id/local-authority/29UP,Tonbridge & Malling Borough Council,8/4/2021,0041033307/35,41033307, 95.85,Contract Security Services Ltd,00964700,,Cash Collection,Parking Off-Street,E10HAE04544007,
http://statistics.data.gov.uk/id/local-authority/29UP,Tonbridge & Malling Borough Council,8/4/2021,0041033307/36,41033307, 63.90,Contract Security Services Ltd,00964700,,Cash Collection,Parking Off-Street,E10HAE04544007,
http://statistics.data.gov.uk/id/local-authority/29UP,Tonbridge & Malling Borough Council,8/4/2021,0041033307/37,41033307, 7.99,Contract Security Services Ltd,00964700,,Cash Collection,Parking On-Street,E10HD000044007,
http://statistics.data.gov.uk/id/local-authority/29UP,Tonbridge & Malling Borough Council,8/4/2021,0041033307/38,41033307, 7.99,Contract Security Services Ltd,00964700,,Cash Collection,Parking On-Street,E10HD000044007,
http://statistics.data.gov.uk/id/local-authority/29UP,Tonbridge & Malling Borough Council,8/4/2021,0041033307/39,41033307, 7.99,Contract Security Services Ltd,00964700,,Cash Collection,Parking On-Street,E10HD000044007,
http://statistics.data.gov.uk/id/local-authority/29UP,Tonbridge & Malling Borough Council,8/4/2021,0041033307/4,41033307, 63.90,Contract Security Services Ltd,00964700,,Cash Collection,Leybourne Lakes Country Park,B22LK000044007,
http://statistics.data.gov.uk/id/local-authority/29UP,Tonbridge & Malling Borough Council,8/4/2021,0041033307/40,41033307, 7.99,Contract Security Services Ltd,00964700,,Cash Collection,Parking On-Street,E10HD000044007,
http://statistics.data.gov.uk/id/local-authority/29UP,Tonbridge & Malling Borough Council,8/4/2021,0041033307/41,41033307, 31.95,Contract Security Services Ltd,00964700,,Cash Collection,Parking On-Street,E10HD000044007,
http://statistics.data.gov.uk/id/local-authority/29UP,Tonbridge & Malling Borough Council,8/4/2021,0041033307/42,41033307, 31.95,Contract Security Services Ltd,00964700,,Cash Collection,Parking On-Street,E10HD000044007,
http://statistics.data.gov.uk/id/local-authority/29UP,Tonbridge & Malling Borough Council,8/4/2021,0041033307/43,41033307, 31.95,Contract Security Services Ltd,00964700,,Cash Collection,Parking On-Street,E10HD000044007,
http://statistics.data.gov.uk/id/local-authority/29UP,Tonbridge & Malling Borough Council,8/4/2021,0041033307/44,41033307, 31.95,Contract Security Services Ltd,00964700,,Cash Collection,Parking On-Street,E10HD000044007,
http://statistics.data.gov.uk/id/local-authority/29UP,Tonbridge & Malling Borough Council,8/4/2021,0041033307/5,41033307, 63.90,Contract Security Services Ltd,00964700,,Cash Collection,Leybourne Lakes Country Park,B22LK000044007,
http://statistics.data.gov.uk/id/local-authority/29UP,Tonbridge & Malling Borough Council,8/4/2021,0041033307/6,41033307, 191.68,Contract Security Services Ltd,00964700,,Cash Collection,Parking Off-Street,E10HAE00144007,
http://statistics.data.gov.uk/id/local-authority/29UP,Tonbridge & Malling Borough Council,8/4/2021,0041033307/7,41033307, 191.70,Contract Security Services Ltd,00964700,,Cash Collection,Parking Off-Street,E10HAE00144007,
http://statistics.data.gov.uk/id/local-authority/29UP,Tonbridge & Malling Borough Council,8/4/2021,0041033307/8,41033307, 191.70,Contract Security Services Ltd,00964700,,Cash Collection,Parking Off-Street,E10HAE00144007,
http://statistics.data.gov.uk/id/local-authority/29UP,Tonbridge & Malling Borough Council,8/4/2021,0041033307/9,41033307, 191.70,Contract Security Services Ltd,00964700,,Cash Collection,Parking Off-Street,E10HAE00144007,
http://statistics.data.gov.uk/id/local-authority/29UP,Tonbridge & Malling Borough Council,8/4/2021,0041033309/1,41033309, 20.00,Computershare Voucher Services,01212600,,Childcare Scheme,Finance Sals&Overheads,D01AFDF0911136,
http://statistics.data.gov.uk/id/local-authority/29UP,Tonbridge & Malling Borough Council,8/4/2021,0041033309/10,41033309, 9.72,Computershare Voucher Services,01212600,,National Insurance,Env Hlth & Hsg Sals&Overheads,D01AVDV0711191,
http://statistics.data.gov.uk/id/local-authority/29UP,Tonbridge & Malling Borough Council,8/4/2021,0041033309/2,41033309, 0.80,Computershare Voucher Services,01212600,,National Insurance,Finance Sals&Overheads,D01AFDF0911191,
http://statistics.data.gov.uk/id/local-authority/29UP,Tonbridge & Malling Borough Council,8/4/2021,0041033309/3,41033309, 90.00,Computershare Voucher Services,01212600,,Childcare Scheme,St Scene & Leis Sals&Overheads,D01AGDG0411136,
http://statistics.data.gov.uk/id/local-authority/29UP,Tonbridge & Malling Borough Council,8/4/2021,0041033309/4,41033309, 3.60,Computershare Voucher Services,01212600,,National Insurance,St Scene & Leis Sals&Overheads,D01AGDG0411191,
http://statistics.data.gov.uk/id/local-authority/29UP,Tonbridge & Malling Borough Council,8/4/2021,0041033309/5,41033309, 50.00,Computershare Voucher Services,01212600,,Childcare Scheme,Legal Sals&Overheads,D01ARDR0011136,
http://statistics.data.gov.uk/id/local-authority/29UP,Tonbridge & Malling Borough Council,8/4/2021,0041033309/6,41033309, 2.00,Computershare Voucher Services,01212600,,National Insurance,Legal Sals&Overheads,D01ARDR0011191,
http://statistics.data.gov.uk/id/local-authority/29UP,Tonbridge & Malling Borough Council,8/4/2021,0041033309/7,41033309, 20.00,Computershare Voucher Services,01212600,,Childcare Scheme,Env Hlth & Hsg Sals&Overheads,D01AVDV0211136,
http://statistics.data.gov.uk/id/local-authority/29UP,Tonbridge & Malling Borough Council,8/4/2021,0041033309/8,41033309, 0.80,Computershare Voucher Services,01212600,,National Insurance,Env Hlth & Hsg Sals&Overheads,D01AVDV0211191,
http://statistics.data.gov.uk/id/local-authority/29UP,Tonbridge & Malling Borough Council,8/4/2021,0041033309/9,41033309, 243.00,Computershare Voucher Services,01212600,,Childcare Scheme,Env Hlth & Hsg Sals&Overheads,D01AVDV0711136,
http://statistics.data.gov.uk/id/local-authority/29UP,Tonbridge & Malling Borough Council,8/6/2021,0011042987/7,11042987, 3650.00,Francis Taylor Building,01688700,,Legal Fees,Legal Sals&Overheads,D01ARDR0044002,
http://statistics.data.gov.uk/id/local-authority/29UP,Tonbridge & Malling Borough Council,8/6/2021,0011042988/1,11042988, 211.00,Westcountry Group,00656400,,Purchases,Central Stationery Stock A/c,K03AD000001002,110069132
http://statistics.data.gov.uk/id/local-authority/29UP,Tonbridge & Malling Borough Council,8/6/2021,0021037369/1,21037369, 35.00,G.L. & R.G. Bourne,00737500,,Maintenance of Grounds,Haysden Country Park,B22LC000020402,
http://statistics.data.gov.uk/id/local-authority/29UP,Tonbridge & Malling Borough Council,8/6/2021,0021037370/1,21037370, 171.50,Countrystyle Group,00835900,781981681,Trade Refuse Charges,Leybourne Lakes Country Park,B22LK000044008,
http://statistics.data.gov.uk/id/local-authority/29UP,Tonbridge & Malling Borough Council,8/6/2021,0021037371/1,21037371, 902.72,Wicksteed Leisure Limited,00167900,,Maintenance of Play Equipment,Open Spaces & Amenity Areas,B22LE000020503,210056298
http://statistics.data.gov.uk/id/local-authority/29UP,Tonbridge & Malling Borough Council,8/6/2021,0021037372/1,21037372, 185.00,Atac Solutions LTD,01558800,,Sewerage Charges,Leybourne Lakes Country Park,B22LK000024003,210056413
http://statistics.data.gov.uk/id/local-authority/29UP,Tonbridge & Malling Borough Council,8/6/2021,0021037373/1,21037373, 247.00,G.L. & R.G. Bourne,00737500,,Maintenance of Grounds,Haysden Country Park,B22LC000020402,210056310
http://statistics.data.gov.uk/id/local-authority/29UP,Tonbridge & Malling Borough Council,8/6/2021,0021037374/1,21037374, 210.00,Atac Solutions LTD,01558800,,Sewerage Charges,Leybourne Lakes Country Park,B22LK000024003,210056425
http://statistics.data.gov.uk/id/local-authority/29UP,Tonbridge & Malling Borough Council,8/6/2021,0022025649/1,22025649, 9090.45,Gregory (Kent) LTD,01310800,,Other Expenses,Disabled Facilities Grant Mand,P03AC000009908,
http://statistics.data.gov.uk/id/local-authority/29UP,Tonbridge & Malling Borough Council,8/6/2021,0022025650/1,22025650, 1250.00,DHA Planning Ltd,01553900,,Professional Fees,Planning Policy,A01AF000044001,320003289
http://statistics.data.gov.uk/id/local-authority/29UP,Tonbridge & Malling Borough Council,8/6/2021,0022025651/1,22025651, 19.00,Pimlico Heath @ The Marven,01810500,,Medical Assessments,Homelessness,C01AA000056009,
http://statistics.data.gov.uk/id/local-authority/29UP,Tonbridge & Malling Borough Council,8/6/2021,0022025652/1,22025652, 2212.32,The Care Group-Housing & Care Trust,01699600,,Professional Fees,Homelessness,C01AA000044001,
http://statistics.data.gov.uk/id/local-authority/29UP,Tonbridge & Malling Borough Council,8/6/2021,0022025653/1,22025653, 1204.00,Green Recycling LTD,01563000,,Paper Recycling,Dry Recycling,H34SR000054024,
http://statistics.data.gov.uk/id/local-authority/29UP,Tonbridge & Malling Borough Council,8/6/2021,0022025654/1,22025654, 3952.16,Ward Security LTD,01490000,,Dog Warden,Street Scene,H23SD000044100,
http://statistics.data.gov.uk/id/local-authority/29UP,Tonbridge & Malling Borough Council,8/6/2021,0022025655/1,22025655, 3735.29,Ward Security LTD,01490000,,Dog Warden,Street Scene,H23SD000044100,
http://statistics.data.gov.uk/id/local-authority/29UP,Tonbridge & Malling Borough Council,8/6/2021,0022025656/1,22025656, 38.94,Viridor Waste Management Ltd,00682900,,Commercial Waste Collection,Refuse Collection,H20SA000054025,
http://statistics.data.gov.uk/id/local-authority/29UP,Tonbridge & Malling Borough Council,8/6/2021,0022025657/1,22025657, 4288.75,Clarion Housing,01776300,,Temporary Accommodation,Homelessness,C01AA000044051,
http://statistics.data.gov.uk/id/local-authority/29UP,Tonbridge & Malling Borough Council,8/6/2021,0022025658/1,22025658, 252.00,Monitor Pest Control Ltd,01476700,,Other Expenses,Pest Control,H24SE000048010,
http://statistics.data.gov.uk/id/local-authority/29UP,Tonbridge & Malling Borough Council,8/6/2021,0022025659/1,22025659, 2777.00,Under My Roof Ltd,01806700,,Temporary Accommodation,Homelessness,C01AA000044051,
http://statistics.data.gov.uk/id/local-authority/29UP,Tonbridge & Malling Borough Council,8/6/2021,0031018087/1,31018087, 2925.00,Flowbird Smart City UK Limited,00898700,,Maintenance - General,Parking Off-Street,E10HA000040135,
http://statistics.data.gov.uk/id/local-authority/29UP,Tonbridge & Malling Borough Council,8/6/2021,0031018092/3,31018092, 67.19,REDACTED PERSONAL DATA,01344100,,Purchases,Boro Drainage & Land Drainage,E20MA000040101,
http://statistics.data.gov.uk/id/local-authority/29UP,Tonbridge & Malling Borough Council,8/6/2021,0031018093/1,31018093, 86.86,Shell U.K. Oil Products Limited,01673300,,"Petrol, Diesel & Oil",Patrolling,B22LF000030106,
http://statistics.data.gov.uk/id/local-authority/29UP,Tonbridge & Malling Borough Council,8/6/2021,0031018093/2,31018093, 131.93,Shell U.K. Oil Products Limited,01673300,,"Petrol, Diesel & Oil",Parking Off-Street,E10HA000030106,
http://statistics.data.gov.uk/id/local-authority/29UP,Tonbridge & Malling Borough Council,8/6/2021,0031018093/3,31018093, 131.93,Shell U.K. Oil Products Limited,01673300,,"Petrol, Diesel & Oil",Parking On-Street,E10HD000030106,
http://statistics.data.gov.uk/id/local-authority/29UP,Tonbridge & Malling Borough Council,8/6/2021,0031018094/1,31018094, 1541.66,B&Q/Screwfix Direct,00141300,,Purchases,Boro Highways & Emergency Oper,E01AA000040101,
http://statistics.data.gov.uk/id/local-authority/29UP,Tonbridge & Malling Borough Council,8/6/2021,0031018095/1,31018095, 4673.20,HEREF Tonbridge Ltd,01518900,,Pay to Principal - Botany CP,Parking Off-Street,E10HA000044197,
http://statistics.data.gov.uk/id/local-authority/29UP,Tonbridge & Malling Borough Council,8/18/2021,0011042990/3,11042990, 19.75,Oasis Group  - Box-It South East,00966800,931579211,Purchases,Electoral Registration,D31MF000040101,
http://statistics.data.gov.uk/id/local-authority/29UP,Tonbridge & Malling Borough Council,8/18/2021,0011042991/1,11042991, 2595.00,Raigins,01769400,,Office Security,Cleaning & Security,D21FD000044047,110069150
http://statistics.data.gov.uk/id/local-authority/29UP,Tonbridge & Malling Borough Council,8/18/2021,0011042992/1,11042992, 210.00,Latch & Locksmith,01802000,,BRREP Response - General,Shops & Maisonettes,M15NAP50001997,110069143
http://statistics.data.gov.uk/id/local-authority/29UP,Tonbridge & Malling Borough Council,8/18/2021,0011042993/1,11042993, 1950.00,Raigins,01769400,,Office Security,Cleaning & Security,D21FD000044047,110069072
http://statistics.data.gov.uk/id/local-authority/29UP,Tonbridge & Malling Borough Council,8/18/2021,0011042994/1,11042994, 56.00,Willow Pumps Ltd,00114100,,BRREP Servicing - Pumping Stn,Tonbridge Swimming Pool,M15HBP20001931,110068675
http://statistics.data.gov.uk/id/local-authority/29UP,Tonbridge & Malling Borough Council,8/18/2021,0011042994/2,11042994, 112.00,Willow Pumps Ltd,00114100,,BRREP Servicing - Pumping Stn,Ton Sportsgrnd Bldgs / Toilets,M15HCP20001931,110068675
http://statistics.data.gov.uk/id/local-authority/29UP,Tonbridge & Malling Borough Council,8/18/2021,0011042994/3,11042994, 112.00,Willow Pumps Ltd,00114100,,BRREP Servicing - Pumping Stn,Vale Rise Depot,M15LCP20001931,110068675
http://statistics.data.gov.uk/id/local-authority/29UP,Tonbridge & Malling Borough Council,8/18/2021,0011042995/1,11042995, 200.00,G C Industrial Heating Services,00578100,,BRREP Servicing - Heating Syst,Gibson Building West,M15KBP20001934,110069136
http://statistics.data.gov.uk/id/local-authority/29UP,Tonbridge & Malling Borough Council,8/18/2021,0011042996/1,11042996, 299.00,Southern Lightning Engineers Ltd,00094000,,BRREP Servicing-Lightning Prot,Larkfield Leisure Centre,M15HDP20001942,110069074
http://statistics.data.gov.uk/id/local-authority/29UP,Tonbridge & Malling Borough Council,8/18/2021,0011042997/1,11042997, 676.44,Security & Electronic Solutions Ltd,01379500,,BRREP Servicing - CCTV,Larkfield Leisure Centre,M15HDP20001952,110069157
http://statistics.data.gov.uk/id/local-authority/29UP,Tonbridge & Malling Borough Council,8/18/2021,0011042998/1,11042998, 676.44,Security & Electronic Solutions Ltd,01379500,,BRREP Servicing - CCTV,Tonbridge Swimming Pool,M15HBP20001952,110069157
http://statistics.data.gov.uk/id/local-authority/29UP,Tonbridge & Malling Borough Council,8/18/2021,0011042999/1,11042999, 430.69,Security & Electronic Solutions Ltd,01379500,,BRREP Servicing - CCTV,Leis Man Poult Wood Golf Centr,M15HEP20001952,110069157
http://statistics.data.gov.uk/id/local-authority/29UP,Tonbridge & Malling Borough Council,8/18/2021,0011043000/1,11043000, 369.24,Security & Electronic Solutions Ltd,01379500,,BRREP Servicing - CCTV,Angel Centre,M15HAP20001952,110069157
http://statistics.data.gov.uk/id/local-authority/29UP,Tonbridge & Malling Borough Council,8/18/2021,0011043001/1,11043001, 250.00,G C Industrial Heating Services,00578100,,BRREP Servicing - air handling,Gibson Building East,M15KGP20001936,110069116
http://statistics.data.gov.uk/id/local-authority/29UP,Tonbridge & Malling Borough Council,8/18/2021,0011043002/1,11043002, 3254.00,Loxton Installations Ltd,01278800,,BRREP IEE Testing,Leis Man Poult Wood Golf Centr,M15HEP30001991,110069066
http://statistics.data.gov.uk/id/local-authority/29UP,Tonbridge & Malling Borough Council,8/18/2021,0011043003/1,11043003, 295.65,Custom Stamps Online,01388900,,Purchases,Conduct of Elections,D31MG000040101,110069127
http://statistics.data.gov.uk/id/local-authority/29UP,Tonbridge & Malling Borough Council,8/18/2021,0011043004/1,11043004, 1006.00,Disclosure & Barring Service,00865900,,Professional Fees,Licences - Fee Paying,H27SH000044001,
http://statistics.data.gov.uk/id/local-authority/29UP,Tonbridge & Malling Borough Council,8/18/2021,0011043005/1,11043005, 1393.00,TMS Protection Ltd,01744300,,Re-opening High Streets,Eco Dev & Reg Gen Bus Support,D52TDCV1948076,
http://statistics.data.gov.uk/id/local-authority/29UP,Tonbridge & Malling Borough Council,8/18/2021,0011043006/1,11043006, 1650.00,KH Recruitment Ltd,01738900,,Temporary Staff,Admin & Prop Sals&Overheads,D01AADA1211300,
http://statistics.data.gov.uk/id/local-authority/29UP,Tonbridge & Malling Borough Council,8/18/2021,0011043007/1,11043007, 175.00,GSF SANDYLIGHT LTD,01705300,,Temporary Staff,Admin & Prop Sals&Overheads,D01AADA0511300,
http://statistics.data.gov.uk/id/local-authority/29UP,Tonbridge & Malling Borough Council,8/18/2021,0011043011/1,11043011, 96.25,K T Fire Protection Ltd,00057000,,BRREP Servicing - FireAlarmSys,Leis Man Poult Wood Golf Centr,M15HEP20001937,
http://statistics.data.gov.uk/id/local-authority/29UP,Tonbridge & Malling Borough Council,8/18/2021,0011043012/1,11043012, 26.10,EDF Energy Customers plc,01035000,,Estate Management Charge,Land Review,D40PS000020400,
http://statistics.data.gov.uk/id/local-authority/29UP,Tonbridge & Malling Borough Council,8/18/2021,0011043013/1,11043013, 1007.84,Scottish Water Business Stream Ltd,01641100,,Sewerage Charges,Buildings,D21FEDD1024003,
http://statistics.data.gov.uk/id/local-authority/29UP,Tonbridge & Malling Borough Council,8/18/2021,0011043014/3,11043014, 59.00,Ovenden Papers Ltd,01599100,,Purchases - Paper,Printing,D22GA000040102,
http://statistics.data.gov.uk/id/local-authority/29UP,Tonbridge & Malling Borough Council,8/18/2021,0011043015/3,11043015, 39.00,K T Fire Protection Ltd,00057000,,BRREP Servicing - FireAlarmSys,Gibson Building West,M15KBP20001937,
http://statistics.data.gov.uk/id/local-authority/29UP,Tonbridge & Malling Borough Council,8/18/2021,0011043015/4,11043015, 85.00,K T Fire Protection Ltd,00057000,,BRREP Servicing - FireAlarmSys,Gibson Building East,M15KGP20001937,
http://statistics.data.gov.uk/id/local-authority/29UP,Tonbridge & Malling Borough Council,8/18/2021,0011043016/3,11043016, 6.10,Royal Mail,00086200,,Purchases,Mailsort Stock Account,K37BR000001002,
http://statistics.data.gov.uk/id/local-authority/29UP,Tonbridge & Malling Borough Council,8/18/2021,0011043016/4,11043016, 3295.35,Royal Mail,00086200,,Purchases,Mailsort Stock Account,K37BR000001002,
http://statistics.data.gov.uk/id/local-authority/29UP,Tonbridge & Malling Borough Council,8/18/2021,0011043017/3,11043017, 127.34,Royal Mail,00086200,,Postages - Business Reply,Electoral Registration,D31MF000045003,
http://statistics.data.gov.uk/id/local-authority/29UP,Tonbridge & Malling Borough Council,8/18/2021,0011043017/4,11043017, 67.52,Royal Mail,00086200,,Purchases,Business Reply Stock Account,K14AT000001002,
http://statistics.data.gov.uk/id/local-authority/29UP,Tonbridge & Malling Borough Council,8/18/2021,0011043018/3,11043018, 4.80,Royal Mail,00086200,,Purchases,Mailsort Stock Account,K37BR000001002,
http://statistics.data.gov.uk/id/local-authority/29UP,Tonbridge & Malling Borough Council,8/18/2021,0011043018/4,11043018, 1591.22,Royal Mail,00086200,,Purchases,Mailsort Stock Account,K37BR000001002,
http://statistics.data.gov.uk/id/local-authority/29UP,Tonbridge & Malling Borough Council,8/18/2021,0011043020/1,11043020, 253.33,Eden Springs UK Ltd,01061000,,Vending Machine Provisions,Snack Facilities,D26KA000041001,
http://statistics.data.gov.uk/id/local-authority/29UP,Tonbridge & Malling Borough Council,8/18/2021,0011043021/3,11043021, 400.00,Premier Group Recycling Ltd,01365300,,Confidential Waste,Cleaning & Security,D21FD000044009,
http://statistics.data.gov.uk/id/local-authority/29UP,Tonbridge & Malling Borough Council,8/18/2021,0011043022/3,11043022, 437.00,BML Building Services Ltd,01505000,,BRREP Response - General,PC - General,M15JAP50001997,
http://statistics.data.gov.uk/id/local-authority/29UP,Tonbridge & Malling Borough Council,8/18/2021,0011043023/3,11043023, 346.00,BML Building Services Ltd,01505000,,BRREP Response - General,Pleasure Grounds & Open Spaces,M15HHP50001997,
http://statistics.data.gov.uk/id/local-authority/29UP,Tonbridge & Malling Borough Council,8/18/2021,0011043024/3,11043024, 606.00,BML Building Services Ltd,01505000,,BRREP Response - General,PC - General,M15JAP50001997,
http://statistics.data.gov.uk/id/local-authority/29UP,Tonbridge & Malling Borough Council,8/18/2021,0011043025/3,11043025, 2081.72,KCS,00054200,,Gas,Buildings,D21FEDD1021003,
http://statistics.data.gov.uk/id/local-authority/29UP,Tonbridge & Malling Borough Council,8/18/2021,0011043026/1,11043026, 50.00,Mayor of Medway's Charity,01297800,,Hospitality,Mayoral & Other Member Support,D29LX000048003,
http://statistics.data.gov.uk/id/local-authority/29UP,Tonbridge & Malling Borough Council,8/18/2021,0011043027/3,11043027, 474.00,BML Building Services Ltd,01505000,,BRREP Response - General,Larkfield Leisure Centre,M15HDP50001997,
http://statistics.data.gov.uk/id/local-authority/29UP,Tonbridge & Malling Borough Council,8/18/2021,0011043028/3,11043028, 39.22,Atlas Facilities Managment Limited ,01075900,,Miscellaneous Services,Cleaning & Security,D21FDDD6044015,
http://statistics.data.gov.uk/id/local-authority/29UP,Tonbridge & Malling Borough Council,8/18/2021,0011043029/3,11043029, 39.22,Atlas Facilities Managment Limited ,01075900,,Miscellaneous Services,Cleaning & Security,D21FDDD1044015,
http://statistics.data.gov.uk/id/local-authority/29UP,Tonbridge & Malling Borough Council,8/18/2021,0011043030/3,11043030, 79.00,BML Building Services Ltd,01505000,,BRREP Response - General,Pleasure Grounds & Open Spaces,M15HHP50001997,
http://statistics.data.gov.uk/id/local-authority/29UP,Tonbridge & Malling Borough Council,8/18/2021,0011043031/3,11043031, 199.60,Ovenden Papers Ltd,01599100,,Purchases - Paper,Printing,D22GA000040102,
http://statistics.data.gov.uk/id/local-authority/29UP,Tonbridge & Malling Borough Council,8/18/2021,0011043032/3,11043032, 806.00,Thomson Snell & Passmore,00101700,,Legal Fees,Legal Sals&Overheads,D01ARDR0044002,
http://statistics.data.gov.uk/id/local-authority/29UP,Tonbridge & Malling Borough Council,8/18/2021,0011043033/3,11043033, 340.00,Premier Group Recycling Ltd,01365300,,Confidential Waste,Cleaning & Security,D21FD000044009,
http://statistics.data.gov.uk/id/local-authority/29UP,Tonbridge & Malling Borough Council,8/18/2021,0011043034/3,11043034, 401.50,Security & Electronic Solutions Ltd,01379500,,BRREP Servicing-IntruderAlarm,Larkfield Leisure Centre,M15HDP20001939,
http://statistics.data.gov.uk/id/local-authority/29UP,Tonbridge & Malling Borough Council,8/18/2021,0011043035/3,11043035, 261.90,Security & Electronic Solutions Ltd,01379500,,BRREP Servicing - CCTV,Larkfield Leisure Centre,M15HDP20001952,
http://statistics.data.gov.uk/id/local-authority/29UP,Tonbridge & Malling Borough Council,8/18/2021,0011043036/3,11043036, 225.00,Ricoh UK Ltd,01402300,,Maintenance - General,Printing,D22GA000040135,
http://statistics.data.gov.uk/id/local-authority/29UP,Tonbridge & Malling Borough Council,8/18/2021,0011043037/3,11043037, 264.29,KCS,00054200,,Gas,Buildings,D21FEDD6021003,
http://statistics.data.gov.uk/id/local-authority/29UP,Tonbridge & Malling Borough Council,8/18/2021,0011043038/1,11043038, 58.00,Chris Woodward,01812700,,Hospitality,Mayoral & Other Member Support,D29LX000048003,
http://statistics.data.gov.uk/id/local-authority/29UP,Tonbridge & Malling Borough Council,8/18/2021,0011043039/3,11043039, 730.72,Ricoh UK Ltd,01402300,,Maintenance - General,Printing,D22GA000040135,
http://statistics.data.gov.uk/id/local-authority/29UP,Tonbridge & Malling Borough Council,8/18/2021,0011043040/4,11043040, 2457.45,EDF Energy Customers plc,01035000,,Estate Management Charge,Land Review,D40PS000020400,
http://statistics.data.gov.uk/id/local-authority/29UP,Tonbridge & Malling Borough Council,8/18/2021,0011043040/6,11043040, 30.46,EDF Energy Customers plc,01035000,,Estate Management Charge,Land Review,D40PS000020400,
http://statistics.data.gov.uk/id/local-authority/29UP,Tonbridge & Malling Borough Council,8/18/2021,0011043041/3,11043041, 79.00,BML Building Services Ltd,01505000,,BRREP Response - General,Pleasure Grounds & Open Spaces,M15HHP50001997,
http://statistics.data.gov.uk/id/local-authority/29UP,Tonbridge & Malling Borough Council,8/18/2021,0011043042/3,11043042, 79.00,BML Building Services Ltd,01505000,,BRREP Resp - Vandal / Break-In,Pleasure Grounds & Open Spaces,M15HHP50001998,
http://statistics.data.gov.uk/id/local-authority/29UP,Tonbridge & Malling Borough Council,8/18/2021,0011043043/3,11043043, 361.77,KCS,00054200,,Electricity,Buildings,D21FEDD5021002,
http://statistics.data.gov.uk/id/local-authority/29UP,Tonbridge & Malling Borough Council,8/18/2021,0011043044/3,11043044, 475.14,KCS,00054200,,Gas,Buildings,D21FEDD6021003,
http://statistics.data.gov.uk/id/local-authority/29UP,Tonbridge & Malling Borough Council,8/18/2021,0011043045/3,11043045, 1119.87,KCS,00054200,,Electricity,Buildings,D21FEDD6021002,
http://statistics.data.gov.uk/id/local-authority/29UP,Tonbridge & Malling Borough Council,8/18/2021,0011043046/3,11043046, 816.22,KCS,00054200,,Electricity,Buildings,D21FEDD5021002,
http://statistics.data.gov.uk/id/local-authority/29UP,Tonbridge & Malling Borough Council,8/18/2021,0011043047/3,11043047, 2887.75,KCS,00054200,,Electricity,Buildings,D21FEDD1021002,
http://statistics.data.gov.uk/id/local-authority/29UP,Tonbridge & Malling Borough Council,8/18/2021,0011043048/3,11043048, 2250.21,Royal Mail,00086200,,Purchases,Mailsort Stock Account,K37BR000001002,
http://statistics.data.gov.uk/id/local-authority/29UP,Tonbridge & Malling Borough Council,8/18/2021,0011043049/3,11043049, 488.39,Kite Packaging Ltd,01811700,,Purchases,Cleaning & Security,D21FD000040101,
http://statistics.data.gov.uk/id/local-authority/29UP,Tonbridge & Malling Borough Council,8/18/2021,0011043050/3,11043050, 1393.00,TMS Protection Ltd,01744300,,Re-opening High Streets,Eco Dev & Reg Gen Bus Support,D52TDCV1948076,
http://statistics.data.gov.uk/id/local-authority/29UP,Tonbridge & Malling Borough Council,8/18/2021,0011043051/3,11043051, 70.00,Archant Community Media Ltd,00831700,,Marketing,Ton Castle Council Chamber,D21FC000044215,
http://statistics.data.gov.uk/id/local-authority/29UP,Tonbridge & Malling Borough Council,8/18/2021,0011043052/3,11043052, 54.00,Kent Crisps Ltd,01806500,,Purchases,TIC Stock Account,K18AX000001002,
http://statistics.data.gov.uk/id/local-authority/29UP,Tonbridge & Malling Borough Council,8/18/2021,0011043053/3,11043053, 798.00,Venn Group Ltd,00914300,,Temporary Staff,Legal Sals&Overheads,D01ARDR0011300,
http://statistics.data.gov.uk/id/local-authority/29UP,Tonbridge & Malling Borough Council,8/18/2021,0012008060/3,12008060, 1748.75,Six Degrees Managed Data (NWF) ltd,01256900,,Telephones - Rentals,General Admin Telephones,D24GT000045005,
http://statistics.data.gov.uk/id/local-authority/29UP,Tonbridge & Malling Borough Council,8/18/2021,0012008061/1,12008061, 2000.00,Camwey Technology,01627200,,Consultancy Fees,Information Technology,D27KD000044011,410032002
http://statistics.data.gov.uk/id/local-authority/29UP,Tonbridge & Malling Borough Council,8/18/2021,0012008062/1,12008062, 187.45,CCS Media Ltd,00018000,,Purchases,Information Technology,D27KD000040101,410031996
http://statistics.data.gov.uk/id/local-authority/29UP,Tonbridge & Malling Borough Council,8/18/2021,0012008062/2,12008062, 2.00,CCS Media Ltd,00018000,,Delivery Expenses,Information Technology,D27KD000044069,410031996
http://statistics.data.gov.uk/id/local-authority/29UP,Tonbridge & Malling Borough Council,8/18/2021,0012008063/1,12008063, 119.90,CCS Media Ltd,00018000,,Purchases,Information Technology,D27KD000040101,410031998
http://statistics.data.gov.uk/id/local-authority/29UP,Tonbridge & Malling Borough Council,8/18/2021,0012008063/2,12008063, 2.00,CCS Media Ltd,00018000,,Delivery Expenses,Information Technology,D27KD000044069,410031998
http://statistics.data.gov.uk/id/local-authority/29UP,Tonbridge & Malling Borough Council,8/18/2021,0012008064/1,12008064, 125.97,CCS Media Ltd,00018000,,Purchases,Information Technology,D27KD000040101,410032008
http://statistics.data.gov.uk/id/local-authority/29UP,Tonbridge & Malling Borough Council,8/18/2021,0012008064/2,12008064, 74.98,CCS Media Ltd,00018000,,Purchases,Information Technology,D27KD000040101,410032008
http://statistics.data.gov.uk/id/local-authority/29UP,Tonbridge & Malling Borough Council,8/18/2021,0012008064/3,12008064, 2.00,CCS Media Ltd,00018000,,Delivery Expenses,Information Technology,D27KD000044069,410032008
http://statistics.data.gov.uk/id/local-authority/29UP,Tonbridge & Malling Borough Council,8/18/2021,0012008065/3,12008065, 15.46,Esendex Limited,01008900,,Leased Lines & Modems,Information Technology,D27KD000045011,
http://statistics.data.gov.uk/id/local-authority/29UP,Tonbridge & Malling Borough Council,8/18/2021,0012008066/3,12008066, 1049.25,KH Recruitment Ltd,01738900,,Salaries & On Costs,Information Technology,D27KD000015100,
http://statistics.data.gov.uk/id/local-authority/29UP,Tonbridge & Malling Borough Council,8/18/2021,0012008067/3,12008067, 1795.20,NTT United Kingdom Ltd,01747000,,Software Hire & Support,Information Technology,D27KD000044059,
http://statistics.data.gov.uk/id/local-authority/29UP,Tonbridge & Malling Borough Council,8/18/2021,0012008068/1,12008068, 750.00,Phoenix Software Ltd,00077400,755349015,Consultancy Fees,Information Technology,D27KD000044011,410031993
http://statistics.data.gov.uk/id/local-authority/29UP,Tonbridge & Malling Borough Council,8/18/2021,0012008069/3,12008069, 11.39,Daisy Communications,01068100,,Telephones - General,Leybourne Lakes Country Park,B22LK000045010,
http://statistics.data.gov.uk/id/local-authority/29UP,Tonbridge & Malling Borough Council,8/18/2021,0012008069/4,12008069, 6.12,Daisy Communications,01068100,,Telephones - Rentals,General Admin Telephones,D24GT000045005,
http://statistics.data.gov.uk/id/local-authority/29UP,Tonbridge & Malling Borough Council,8/18/2021,0012008069/5,12008069, 526.90,Daisy Communications,01068100,,Telephones - Call Costs,General Admin Telephones,D24GT000045006,
http://statistics.data.gov.uk/id/local-authority/29UP,Tonbridge & Malling Borough Council,8/18/2021,0012008069/6,12008069, 84.88,Daisy Communications,01068100,,Leased Lines & Modems,Information Technology,D27KD000045011,
http://statistics.data.gov.uk/id/local-authority/29UP,Tonbridge & Malling Borough Council,8/18/2021,0012008069/7,12008069, 65.88,Daisy Communications,01068100,,Maintenance - General,Security Services Management,E09GA000040135,
http://statistics.data.gov.uk/id/local-authority/29UP,Tonbridge & Malling Borough Council,8/18/2021,0012008071/1,12008071, 583.00,NTT Cloud Communications,01794600,,Software Hire & Support,Information Technology,D27KD000044059,410031928
http://statistics.data.gov.uk/id/local-authority/29UP,Tonbridge & Malling Borough Council,8/18/2021,0012008072/1,12008072, 116.66,Sumillion Ltd,01726600,,Maintenance - Ancillary Equip,Information Technology,D27KD000040137,410031901
http://statistics.data.gov.uk/id/local-authority/29UP,Tonbridge & Malling Borough Council,8/18/2021,0012008072/2,12008072, 1116.78,Sumillion Ltd,01726600,,Initial Furniture & Equipment,Capital Renewals IT,P06FBFB2009906,410031901
http://statistics.data.gov.uk/id/local-authority/29UP,Tonbridge & Malling Borough Council,8/18/2021,0012008073/10,12008073, 3.00,O2 UK Ltd,01268000,,Mobile Telephones,Chief Exec Sals&Overheads,D01ACDC0245013,
http://statistics.data.gov.uk/id/local-authority/29UP,Tonbridge & Malling Borough Council,8/18/2021,0012008073/11,12008073, 3.00,O2 UK Ltd,01268000,,Mobile Telephones,Technical Sals&Overheads,D01AEDE0045013,
http://statistics.data.gov.uk/id/local-authority/29UP,Tonbridge & Malling Borough Council,8/18/2021,0012008073/12,12008073, 6.00,O2 UK Ltd,01268000,,Mobile Telephones,Technical Sals&Overheads,D01AEDE0145013,
http://statistics.data.gov.uk/id/local-authority/29UP,Tonbridge & Malling Borough Council,8/18/2021,0012008073/13,12008073, 9.00,O2 UK Ltd,01268000,,Mobile Telephones,Technical Sals&Overheads,D01AEDE0245013,
http://statistics.data.gov.uk/id/local-authority/29UP,Tonbridge & Malling Borough Council,8/18/2021,0012008073/14,12008073, 39.00,O2 UK Ltd,01268000,,Mobile Telephones,Technical Sals&Overheads,D01AEDE0445013,
http://statistics.data.gov.uk/id/local-authority/29UP,Tonbridge & Malling Borough Council,8/18/2021,0012008073/15,12008073, 3.00,O2 UK Ltd,01268000,,Mobile Telephones,Technical Sals&Overheads,D01AEDE0545013,
http://statistics.data.gov.uk/id/local-authority/29UP,Tonbridge & Malling Borough Council,8/18/2021,0012008073/16,12008073, 12.00,O2 UK Ltd,01268000,,Mobile Telephones,Finance Sals&Overheads,D01AFDF0045013,
http://statistics.data.gov.uk/id/local-authority/29UP,Tonbridge & Malling Borough Council,8/18/2021,0012008073/17,12008073, 9.00,O2 UK Ltd,01268000,,Mobile Telephones,Finance Sals&Overheads,D01AFDF0945013,
http://statistics.data.gov.uk/id/local-authority/29UP,Tonbridge & Malling Borough Council,8/18/2021,0012008073/18,12008073, 12.00,O2 UK Ltd,01268000,,Mobile Telephones,St Scene & Leis Sals&Overheads,D01AGDG0045013,
http://statistics.data.gov.uk/id/local-authority/29UP,Tonbridge & Malling Borough Council,8/18/2021,0012008073/19,12008073, 6.00,O2 UK Ltd,01268000,,Mobile Telephones,St Scene & Leis Sals&Overheads,D01AGDG0145013,
http://statistics.data.gov.uk/id/local-authority/29UP,Tonbridge & Malling Borough Council,8/18/2021,0012008073/20,12008073, 9.00,O2 UK Ltd,01268000,,Mobile Telephones,St Scene & Leis Sals&Overheads,D01AGDG0445013,
http://statistics.data.gov.uk/id/local-authority/29UP,Tonbridge & Malling Borough Council,8/18/2021,0012008073/21,12008073, 30.10,O2 UK Ltd,01268000,,Mobile Telephones,St Scene & Leis Sals&Overheads,D01AGDG2045013,
http://statistics.data.gov.uk/id/local-authority/29UP,Tonbridge & Malling Borough Council,8/18/2021,0012008073/22,12008073, 9.00,O2 UK Ltd,01268000,,Mobile Telephones,Planning Sals&Overheads,D01AJDJ0045013,
http://statistics.data.gov.uk/id/local-authority/29UP,Tonbridge & Malling Borough Council,8/18/2021,0012008073/23,12008073, 3.00,O2 UK Ltd,01268000,,Mobile Telephones,Planning Sals&Overheads,D01AJDJ0145013,
http://statistics.data.gov.uk/id/local-authority/29UP,Tonbridge & Malling Borough Council,8/18/2021,0012008073/24,12008073, 6.00,O2 UK Ltd,01268000,,Mobile Telephones,Legal Sals&Overheads,D01ARDR0045013,
http://statistics.data.gov.uk/id/local-authority/29UP,Tonbridge & Malling Borough Council,8/18/2021,0012008073/25,12008073, 12.00,O2 UK Ltd,01268000,,Mobile Telephones,Legal Sals&Overheads,D01ARDR0445013,
http://statistics.data.gov.uk/id/local-authority/29UP,Tonbridge & Malling Borough Council,8/18/2021,0012008073/26,12008073, 3.00,O2 UK Ltd,01268000,,Mobile Telephones,Legal Sals&Overheads,D01ARDR0745013,
http://statistics.data.gov.uk/id/local-authority/29UP,Tonbridge & Malling Borough Council,8/18/2021,0012008073/27,12008073, 3.00,O2 UK Ltd,01268000,,Mobile Telephones,Env Hlth & Hsg Sals&Overheads,D01AVDV0045013,
http://statistics.data.gov.uk/id/local-authority/29UP,Tonbridge & Malling Borough Council,8/18/2021,0012008073/28,12008073, 9.00,O2 UK Ltd,01268000,,Mobile Telephones,Env Hlth & Hsg Sals&Overheads,D01AVDV0145013,
http://statistics.data.gov.uk/id/local-authority/29UP,Tonbridge & Malling Borough Council,8/18/2021,0012008073/29,12008073, 6.00,O2 UK Ltd,01268000,,Mobile Telephones,Env Hlth & Hsg Sals&Overheads,D01AVDV0345013,
http://statistics.data.gov.uk/id/local-authority/29UP,Tonbridge & Malling Borough Council,8/18/2021,0012008073/3,12008073, 3.00,O2 UK Ltd,01268000,,Telephones - General,Open Spaces & Amenity Areas,B22LE000045010,
http://statistics.data.gov.uk/id/local-authority/29UP,Tonbridge & Malling Borough Council,8/18/2021,0012008073/30,12008073, 9.00,O2 UK Ltd,01268000,,Mobile Telephones,Customer Services,D23CS000045013,
http://statistics.data.gov.uk/id/local-authority/29UP,Tonbridge & Malling Borough Council,8/18/2021,0012008073/31,12008073, 3.00,O2 UK Ltd,01268000,,Mobile Telephones,Tonbridge Gateway,D23TG000045013,
http://statistics.data.gov.uk/id/local-authority/29UP,Tonbridge & Malling Borough Council,8/18/2021,0012008073/32,12008073, 624.00,O2 UK Ltd,01268000,,Leased Lines & Modems,Information Technology,D27KD000045011,
http://statistics.data.gov.uk/id/local-authority/29UP,Tonbridge & Malling Borough Council,8/18/2021,0012008073/33,12008073, 3.00,O2 UK Ltd,01268000,,Mobile Telephones,Mayoral & Other Member Support,D29LX000045013,
http://statistics.data.gov.uk/id/local-authority/29UP,Tonbridge & Malling Borough Council,8/18/2021,0012008073/34,12008073, 3.00,O2 UK Ltd,01268000,,Emergency Out of Hours Recharg,Refuse Collection,H20SA000045030,
http://statistics.data.gov.uk/id/local-authority/29UP,Tonbridge & Malling Borough Council,8/18/2021,0012008073/35,12008073, 3.00,O2 UK Ltd,01268000,,Emergency Out of Hours Recharg,Street Scene,H23SD000045030,
http://statistics.data.gov.uk/id/local-authority/29UP,Tonbridge & Malling Borough Council,8/18/2021,0012008073/4,12008073, 6.00,O2 UK Ltd,01268000,,Telephones - General,Leybourne Lakes Country Park,B22LK000045010,
http://statistics.data.gov.uk/id/local-authority/29UP,Tonbridge & Malling Borough Council,8/18/2021,0012008073/5,12008073, 6.00,O2 UK Ltd,01268000,,Mobile Telephones,Admin & Prop Sals&Overheads,D01AADA0045013,
http://statistics.data.gov.uk/id/local-authority/29UP,Tonbridge & Malling Borough Council,8/18/2021,0012008073/6,12008073, 6.00,O2 UK Ltd,01268000,,Mobile Telephones,Admin & Prop Sals&Overheads,D01AADA1045013,
http://statistics.data.gov.uk/id/local-authority/29UP,Tonbridge & Malling Borough Council,8/18/2021,0012008073/7,12008073, 3.00,O2 UK Ltd,01268000,,Mobile Telephones,Admin & Prop Sals&Overheads,D01AADA1245013,
http://statistics.data.gov.uk/id/local-authority/29UP,Tonbridge & Malling Borough Council,8/18/2021,0012008073/8,12008073, 3.00,O2 UK Ltd,01268000,,Mobile Telephones,Chief Exec Sals&Overheads,D01ACDC0045013,
http://statistics.data.gov.uk/id/local-authority/29UP,Tonbridge & Malling Borough Council,8/18/2021,0012008073/9,12008073, 3.00,O2 UK Ltd,01268000,,Mobile Telephones,Chief Exec Sals&Overheads,D01ACDC0145013,
http://statistics.data.gov.uk/id/local-authority/29UP,Tonbridge & Malling Borough Council,8/18/2021,0012008074/1,12008074, 5940.00,INOVEM,01732400,,Software Hire & Support,Information Technology,D27KD000044059,410032019
http://statistics.data.gov.uk/id/local-authority/29UP,Tonbridge & Malling Borough Council,8/18/2021,0012008075/1,12008075, 5.61,Amazon EU SARL,01738400,,Purchases,Information Technology,D27KD000040101,410032022
http://statistics.data.gov.uk/id/local-authority/29UP,Tonbridge & Malling Borough Council,8/18/2021,0012008075/2,12008075, 4.16,Amazon EU SARL,01738400,,Delivery Expenses,Information Technology,D27KD000044069,410032022
http://statistics.data.gov.uk/id/local-authority/29UP,Tonbridge & Malling Borough Council,8/18/2021,0012008076/1,12008076, 1049.25,KH Recruitment Ltd,01738900,,Salaries & On Costs,Information Technology,D27KD000015100,
http://statistics.data.gov.uk/id/local-authority/29UP,Tonbridge & Malling Borough Council,8/18/2021,0012008077/1,12008077, 86.97,Kingsfield Computer Products Ltd,00942800,,Purchases,Information Technology,D27KD000040101,410032021
http://statistics.data.gov.uk/id/local-authority/29UP,Tonbridge & Malling Borough Council,8/18/2021,0012008077/2,12008077, 9.95,Kingsfield Computer Products Ltd,00942800,,Delivery Expenses,Information Technology,D27KD000044069,410032021
http://statistics.data.gov.uk/id/local-authority/29UP,Tonbridge & Malling Borough Council,8/18/2021,0012008078/1,12008078, 44.97,Kingsfield Computer Products Ltd,00942800,,Purchases,Information Technology,D27KD000040101,410032021
http://statistics.data.gov.uk/id/local-authority/29UP,Tonbridge & Malling Borough Council,8/18/2021,0012008079/1,12008079, 3552.63,Kingsfield Computer Products Ltd,00942800,,Purchases,Information Technology,D27KD000040101,410032020
http://statistics.data.gov.uk/id/local-authority/29UP,Tonbridge & Malling Borough Council,8/18/2021,0012008079/2,12008079, 9.95,Kingsfield Computer Products Ltd,00942800,,Delivery Expenses,Information Technology,D27KD000044069,410032020
http://statistics.data.gov.uk/id/local-authority/29UP,Tonbridge & Malling Borough Council,8/18/2021,0021037379/3,21037379, 789.76,Atlas Facilities Managment Limited ,01075900,,Gates / Security,Leybourne Lakes Country Park,B22LK000044017,
http://statistics.data.gov.uk/id/local-authority/29UP,Tonbridge & Malling Borough Council,8/18/2021,0021037380/3,21037380, 640.00,Atlas Facilities Managment Limited ,01075900,,Gates / Security,Patrolling,B22LF000044017,
http://statistics.data.gov.uk/id/local-authority/29UP,Tonbridge & Malling Borough Council,8/18/2021,0021037381/1,21037381, 46.00,South East Water Ltd,01330300,,Maintenance of Grounds,Leybourne Lakes Country Park,B22LK000020402,210056269
http://statistics.data.gov.uk/id/local-authority/29UP,Tonbridge & Malling Borough Council,8/18/2021,0021037382/1,21037382, 120.00,SWS Countryside & Landscape,01567200,,Health & Safety - Trees,Countryside/Woodland Mgt,B22LG000044045,210056393
http://statistics.data.gov.uk/id/local-authority/29UP,Tonbridge & Malling Borough Council,8/18/2021,0021037382/2,21037382, 450.00,SWS Countryside & Landscape,01567200,,Health & Safety - Trees,Countryside/Woodland Mgt,B22LG000044045,210056393
http://statistics.data.gov.uk/id/local-authority/29UP,Tonbridge & Malling Borough Council,8/18/2021,0021037383/1,21037383, 50.00,SWS Countryside & Landscape,01567200,,Maintenance of Grounds,Open Spaces & Amenity Areas,B22LE000020402,210056370
http://statistics.data.gov.uk/id/local-authority/29UP,Tonbridge & Malling Borough Council,8/18/2021,0021037384/1,21037384, 607.50,Prosec General Security Ltd,00810600,,Events Support,Events Development,B41TJ000044041,210056428
http://statistics.data.gov.uk/id/local-authority/29UP,Tonbridge & Malling Borough Council,8/18/2021,0021037388/1,21037388, 600.00,Green Oak Services,01635000,,Maintenance of Grounds,Open Spaces & Amenity Areas,B22LE000020402,210056424
http://statistics.data.gov.uk/id/local-authority/29UP,Tonbridge & Malling Borough Council,8/18/2021,0021037389/3,21037389, 292.44,KCC - L.A.S.E.R Commercial Services ,00184300,,Electricity,Open Spaces & Amenity Areas,B22LE000021002,
http://statistics.data.gov.uk/id/local-authority/29UP,Tonbridge & Malling Borough Council,8/18/2021,0021037390/3,21037390, 45.49,B&Q/Screwfix Direct,00141300,,Maintenance of Grounds,Haysden Country Park,B22LC000020402,
http://statistics.data.gov.uk/id/local-authority/29UP,Tonbridge & Malling Borough Council,8/18/2021,0021037391/1,21037391, 770.00,SL TreeCare Ltd,01274100,,Health & Safety - Trees,Countryside/Woodland Mgt,B22LG000044045,210056427
http://statistics.data.gov.uk/id/local-authority/29UP,Tonbridge & Malling Borough Council,8/18/2021,0021037393/3,21037393, 432.00,TMS Protection Ltd,01744300,,Gates / Security,Leybourne Lakes Country Park,B22LK000044017,
http://statistics.data.gov.uk/id/local-authority/29UP,Tonbridge & Malling Borough Council,8/18/2021,0021037394/1,21037394, 15.20,Upper Medway Internal Drainage Board,00109100,,Maintenance of Grounds,Countryside/Woodland Mgt,B22LG000020402,
http://statistics.data.gov.uk/id/local-authority/29UP,Tonbridge & Malling Borough Council,8/18/2021,0021037395/1,21037395, 73441.00,Alliance Leisure Services Ltd,01781100,,Professional Fees,LLCP Facility Improv,P05FF000009903,220003088
http://statistics.data.gov.uk/id/local-authority/29UP,Tonbridge & Malling Borough Council,8/18/2021,0021037396/1,21037396, 350.00,Security & Electronic Solutions Ltd,01379500,,Initial Furniture & Equipment,Capital Renewals Leisure,P05KGBC0209906,210056307
http://statistics.data.gov.uk/id/local-authority/29UP,Tonbridge & Malling Borough Council,8/18/2021,0022025599/1,22025599, 740.00,G2 Recruitment Solutions,01786000,,Temporary Staff,Env Hlth & Hsg Sals&Overheads,D01AVDV0711300,
http://statistics.data.gov.uk/id/local-authority/29UP,Tonbridge & Malling Borough Council,8/18/2021,0022025660/1,22025660, 2154.50,1st  Steps Housing Kent,01716100,,Temporary Accommodation,Homelessness,C01AA000044051,
http://statistics.data.gov.uk/id/local-authority/29UP,Tonbridge & Malling Borough Council,8/18/2021,0022025661/1,22025661, 320.00,REDACTED PERSONAL DATA,01811600,,Other Expenses,Disabled Facilities Grant Mand,P03AC000009908,
http://statistics.data.gov.uk/id/local-authority/29UP,Tonbridge & Malling Borough Council,8/18/2021,0022025662/3,22025662, 92.87,EDF Energy Customers plc,01035000,,Electricity,Homelessness,C01AATNHS21002,
http://statistics.data.gov.uk/id/local-authority/29UP,Tonbridge & Malling Borough Council,8/18/2021,0022025663/3,22025663, 763.31,G2 Recruitment Solutions,01786000,,Temporary Staff,Env Hlth & Hsg Sals&Overheads,D01AVDV0711300,
http://statistics.data.gov.uk/id/local-authority/29UP,Tonbridge & Malling Borough Council,8/18/2021,0022025664/1,22025664, 4727.50,House to Home Lettings Ltd ,01647600,,Temporary Accommodation,Homelessness,C01AA000044051,
http://statistics.data.gov.uk/id/local-authority/29UP,Tonbridge & Malling Borough Council,8/18/2021,0022025665/1,22025665, 384.96,Scottish Water Business Stream Ltd,01641100,,Sewerage Charges,Public Conveniences,H22SCH01224003,
http://statistics.data.gov.uk/id/local-authority/29UP,Tonbridge & Malling Borough Council,8/18/2021,0022025666/1,22025666, 9145.00,Kent Accommodation Ltd,01722000,,Temporary Accommodation,Homelessness,C01AA000044051,
http://statistics.data.gov.uk/id/local-authority/29UP,Tonbridge & Malling Borough Council,8/18/2021,0022025667/1,22025667, 961.00,Kent Property Services,01722500,,Temporary Accommodation,Homelessness,C01AA000044051,
http://statistics.data.gov.uk/id/local-authority/29UP,Tonbridge & Malling Borough Council,8/18/2021,0022025668/1,22025668, 12968.00,Less Homeless Ltd,01489300,,Temporary Accommodation,Homelessness,C01AA000044051,
http://statistics.data.gov.uk/id/local-authority/29UP,Tonbridge & Malling Borough Council,8/18/2021,0022025669/3,22025669, 10044.00,Simon Niblett Lettings,00072600,,Temporary Accommodation,Homelessness,C01AA000044051,
http://statistics.data.gov.uk/id/local-authority/29UP,Tonbridge & Malling Borough Council,8/18/2021,0022025670/3,22025670, 3410.00,Simon Niblett Lettings,00072600,,Temporary Accommodation,Homelessness,C01AA000044051,
http://statistics.data.gov.uk/id/local-authority/29UP,Tonbridge & Malling Borough Council,8/18/2021,0022025671/1,22025671, 72023.00,Paramount Independent Property Suppliers,01595300,,Temporary Accommodation,Homelessness,C01AA000044051,
http://statistics.data.gov.uk/id/local-authority/29UP,Tonbridge & Malling Borough Council,8/18/2021,0022025672/1,22025672, 5611.00,Premier Property Providers,01785400,,Temporary Accommodation,Homelessness,C01AA000044051,
http://statistics.data.gov.uk/id/local-authority/29UP,Tonbridge & Malling Borough Council,8/18/2021,0022025673/1,22025673, 6285.00,Simply Rented Ltd ,01691400,,Temporary Accommodation,Homelessness,C01AA000044051,
http://statistics.data.gov.uk/id/local-authority/29UP,Tonbridge & Malling Borough Council,8/18/2021,0022025674/1,22025674, 23496.50,Social & Community Care,01768400,,Temporary Accommodation,Homelessness,C01AA000044051,
http://statistics.data.gov.uk/id/local-authority/29UP,Tonbridge & Malling Borough Council,8/18/2021,0022025675/3,22025675, 19944.00,SPA CAFFE LIMITED,00127100,,Temporary Accommodation,Homelessness,C01AA000044051,
http://statistics.data.gov.uk/id/local-authority/29UP,Tonbridge & Malling Borough Council,8/18/2021,0022025676/3,22025676, 48.00,Streamline (Kent) Limited,01043100,,Public Transport,Homelessness,C01AA000033001,
http://statistics.data.gov.uk/id/local-authority/29UP,Tonbridge & Malling Borough Council,8/18/2021,0022025677/1,22025677, 2028.00,Broxap Ltd,00312300,,Purchases,Street Scene,H23SD000040101,220003108
http://statistics.data.gov.uk/id/local-authority/29UP,Tonbridge & Malling Borough Council,8/18/2021,0022025678/3,22025678, 15.07,Bulb Energy Ltd,01799000,214948301,Electricity,Homelessness,C01AA000021002,
http://statistics.data.gov.uk/id/local-authority/29UP,Tonbridge & Malling Borough Council,8/18/2021,0022025679/1,22025679, 12792.00,Craemer UK LTD,01616400,,Initial Furniture & Equipment,Green Waste Bin Growth/Replace,P02BC000009906,220003111
http://statistics.data.gov.uk/id/local-authority/29UP,Tonbridge & Malling Borough Council,8/18/2021,0022025680/1,22025680, 391.00,DM Marketing Communications,01742000,,Publicity & Promotion,Dry Recycling,H34SRZ99944217,220003128
http://statistics.data.gov.uk/id/local-authority/29UP,Tonbridge & Malling Borough Council,8/18/2021,0022025681/3,22025681, 2331.60,Lucy and Martin Recycling LTD,01694200,,Vehicle Licences,Dry Recycling,H34SR000030105,
http://statistics.data.gov.uk/id/local-authority/29UP,Tonbridge & Malling Borough Council,8/18/2021,0022025682/1,22025682, 1350.00,Peabody South East LTD,01680900,,Countywide DFG Project,Private Sector Housing Renewal,C03BD000044031,
http://statistics.data.gov.uk/id/local-authority/29UP,Tonbridge & Malling Borough Council,8/18/2021,0022025683/1,22025683, 570.00,Peabody South East LTD,01680900,,Other Expenses,Housing Assistance,P03AD000009908,
http://statistics.data.gov.uk/id/local-authority/29UP,Tonbridge & Malling Borough Council,8/18/2021,0022025684/1,22025684, 894.00,Peabody South East LTD,01680900,,Other Expenses,Housing Assistance,P03AD000009908,
http://statistics.data.gov.uk/id/local-authority/29UP,Tonbridge & Malling Borough Council,8/18/2021,0022025685/1,22025685, 355.00,Peabody South East LTD,01680900,,Countywide DFG Project,Private Sector Housing Renewal,C03BD000044031,
http://statistics.data.gov.uk/id/local-authority/29UP,Tonbridge & Malling Borough Council,8/18/2021,0022025686/3,22025686, 983.08,KCC - L.A.S.E.R Commercial Services ,00184300,,Electricity,Public Conveniences,H22SCH00421002,
http://statistics.data.gov.uk/id/local-authority/29UP,Tonbridge & Malling Borough Council,8/18/2021,0022025687/3,22025687, 1.29,REDACTED PERSONAL DATA,01773200,,Repairs & Mtce to Buildings,Homelessness,C01AATNHS20101,
http://statistics.data.gov.uk/id/local-authority/29UP,Tonbridge & Malling Borough Council,8/18/2021,0022025688/3,22025688, 618.75,KH Recruitment Ltd,01738900,,Temporary Staff,St Scene & Leis Sals&Overheads,D01AGDG3011300,
http://statistics.data.gov.uk/id/local-authority/29UP,Tonbridge & Malling Borough Council,8/18/2021,0022025689/1,22025689, 941.72,South East Water Ltd,00572200,,Water Charges (Metered),Homelessness,C01AAMAUN24001,
http://statistics.data.gov.uk/id/local-authority/29UP,Tonbridge & Malling Borough Council,8/18/2021,0022025690/1,22025690, 286.90,Scottish Water Business Stream Ltd,01641100,,Sewerage Charges,Public Conveniences,H22SCH00424003,
http://statistics.data.gov.uk/id/local-authority/29UP,Tonbridge & Malling Borough Council,8/18/2021,0022025691/3,22025691, 1279.08,Peoplesafe -  Skyguard Ltd,01779900,,Health General,Technical Sals&Overheads,D01AEDE0144049,
http://statistics.data.gov.uk/id/local-authority/29UP,Tonbridge & Malling Borough Council,8/18/2021,0022025691/4,22025691, 333.96,Peoplesafe -  Skyguard Ltd,01779900,,Health General,Technical Sals&Overheads,D01AEDE0444049,
http://statistics.data.gov.uk/id/local-authority/29UP,Tonbridge & Malling Borough Council,8/18/2021,0022025691/5,22025691, 348.84,Peoplesafe -  Skyguard Ltd,01779900,,Health General,St Scene & Leis Sals&Overheads,D01AGDG0144049,
http://statistics.data.gov.uk/id/local-authority/29UP,Tonbridge & Malling Borough Council,8/18/2021,0022025691/6,22025691, 581.40,Peoplesafe -  Skyguard Ltd,01779900,,Health General,St Scene & Leis Sals&Overheads,D01AGDG2044049,
http://statistics.data.gov.uk/id/local-authority/29UP,Tonbridge & Malling Borough Council,8/18/2021,0022025692/10,22025692, 461.16,Peoplesafe -  Skyguard Ltd,01779900,,Health General,Env Hlth & Hsg Sals&Overheads,D01AVDV0944049,
http://statistics.data.gov.uk/id/local-authority/29UP,Tonbridge & Malling Borough Council,8/18/2021,0022025692/3,22025692, 65.88,Peoplesafe -  Skyguard Ltd,01779900,,Health General,Admin & Prop Sals&Overheads,D01AADA0544049,
http://statistics.data.gov.uk/id/local-authority/29UP,Tonbridge & Malling Borough Council,8/18/2021,0022025692/4,22025692, 263.52,Peoplesafe -  Skyguard Ltd,01779900,,Health General,St Scene & Leis Sals&Overheads,D01AGDG2044049,
http://statistics.data.gov.uk/id/local-authority/29UP,Tonbridge & Malling Borough Council,8/18/2021,0022025692/5,22025692, 197.64,Peoplesafe -  Skyguard Ltd,01779900,,Health General,Legal Sals&Overheads,D01ARDR0444049,
http://statistics.data.gov.uk/id/local-authority/29UP,Tonbridge & Malling Borough Council,8/18/2021,0022025692/6,22025692, 65.88,Peoplesafe -  Skyguard Ltd,01779900,,Health General,Legal Sals&Overheads,D01ARDR0744049,
http://statistics.data.gov.uk/id/local-authority/29UP,Tonbridge & Malling Borough Council,8/18/2021,0022025692/7,22025692, 395.28,Peoplesafe -  Skyguard Ltd,01779900,,Health General,Env Hlth & Hsg Sals&Overheads,D01AVDV0244049,
http://statistics.data.gov.uk/id/local-authority/29UP,Tonbridge & Malling Borough Council,8/18/2021,0022025692/8,22025692, 131.76,Peoplesafe -  Skyguard Ltd,01779900,,Health General,Env Hlth & Hsg Sals&Overheads,D01AVDV0344049,
http://statistics.data.gov.uk/id/local-authority/29UP,Tonbridge & Malling Borough Council,8/18/2021,0022025692/9,22025692, 65.88,Peoplesafe -  Skyguard Ltd,01779900,,Health General,Env Hlth & Hsg Sals&Overheads,D01AVDV0744049,
http://statistics.data.gov.uk/id/local-authority/29UP,Tonbridge & Malling Borough Council,8/18/2021,0022025694/1,22025694, 618.75,KH Recruitment Ltd,01738900,,Temporary Staff,St Scene & Leis Sals&Overheads,D01AGDG3011300,
http://statistics.data.gov.uk/id/local-authority/29UP,Tonbridge & Malling Borough Council,8/18/2021,0031018101/1,31018101, 63.75,Archway Highway Services Ltd,01398000,,Premises Repairs & Maintenance,Parking Off-Street,E10HA000020601,310042687
http://statistics.data.gov.uk/id/local-authority/29UP,Tonbridge & Malling Borough Council,8/18/2021,0031018102/3,31018102, 406.50,Arnold & Court Ltd,01411300,,Repair & Mtce of Fixed Plant,Boro Highways & Emergency Oper,E01AA000020501,
http://statistics.data.gov.uk/id/local-authority/29UP,Tonbridge & Malling Borough Council,8/18/2021,0031018103/3,31018103, 342.84,Arnold & Court Ltd,01411300,,Repair & Mtce of Fixed Plant,Boro Highways & Emergency Oper,E01AA000020501,
http://statistics.data.gov.uk/id/local-authority/29UP,Tonbridge & Malling Borough Council,8/18/2021,0031018103/4,31018103, 117.16,Arnold & Court Ltd,01411300,,Premises Repairs & Maintenance,Parking Off-Street,E10HA000020601,
http://statistics.data.gov.uk/id/local-authority/29UP,Tonbridge & Malling Borough Council,8/18/2021,0031018104/3,31018104, 400.00,Arnold & Court Ltd,01411300,,Purchases,Parking On-Street,E10HD000040101,
http://statistics.data.gov.uk/id/local-authority/29UP,Tonbridge & Malling Borough Council,8/18/2021,0031018105/1,31018105, 124.92,KM Media Group Ltd,00053900,,Advertising General,Parking On-Street,E10HD000044216,310042699
http://statistics.data.gov.uk/id/local-authority/29UP,Tonbridge & Malling Borough Council,8/18/2021,0031018106/4,31018106, 4705.00,Marston,01485000,,Adjudication & Enforcement Ser,Parking Off-Street,E10HA000044230,
http://statistics.data.gov.uk/id/local-authority/29UP,Tonbridge & Malling Borough Council,8/18/2021,0031018107/1,31018107, 523.60,PSR Lighting & Signs Ltd,01265400,,Premises Repairs & Maintenance,Parking Off-Street,E10HA000020601,310042679
http://statistics.data.gov.uk/id/local-authority/29UP,Tonbridge & Malling Borough Council,8/18/2021,0031018108/1,31018108, 400.00,Arnold & Court Ltd,01411300,,Premises Repairs & Maintenance,Parking Off-Street,E10HA000020601,310042693
http://statistics.data.gov.uk/id/local-authority/29UP,Tonbridge & Malling Borough Council,8/18/2021,0031018109/1,31018109, 400.00,Arnold & Court Ltd,01411300,,Premises Repairs & Maintenance,Parking Off-Street,E10HA000020601,310042656
http://statistics.data.gov.uk/id/local-authority/29UP,Tonbridge & Malling Borough Council,8/18/2021,0031018110/3,31018110, 81.62,REDACTED PERSONAL DATA,01344100,,Purchases,Boro Drainage & Land Drainage,E20MA000040101,
http://statistics.data.gov.uk/id/local-authority/29UP,Tonbridge & Malling Borough Council,8/18/2021,0031018110/4,31018110, 41.35,REDACTED PERSONAL DATA,01344100,,Purchases,Boro Drainage & Land Drainage,E20MA000040101,
http://statistics.data.gov.uk/id/local-authority/29UP,Tonbridge & Malling Borough Council,8/18/2021,0031018110/5,31018110, 111.93,REDACTED PERSONAL DATA,01344100,,Purchases,Boro Drainage & Land Drainage,E20MA000040101,
http://statistics.data.gov.uk/id/local-authority/29UP,Tonbridge & Malling Borough Council,8/18/2021,0031018111/3,31018111, 65.47,Shell U.K. Oil Products Limited,01673300,,"Petrol, Diesel & Oil",Patrolling,B22LF000030106,
http://statistics.data.gov.uk/id/local-authority/29UP,Tonbridge & Malling Borough Council,8/18/2021,0031018111/4,31018111, 157.58,Shell U.K. Oil Products Limited,01673300,,"Petrol, Diesel & Oil",Parking Off-Street,E10HA000030106,
http://statistics.data.gov.uk/id/local-authority/29UP,Tonbridge & Malling Borough Council,8/18/2021,0031018111/5,31018111, 157.58,Shell U.K. Oil Products Limited,01673300,,"Petrol, Diesel & Oil",Parking On-Street,E10HD000030106,
http://statistics.data.gov.uk/id/local-authority/29UP,Tonbridge & Malling Borough Council,8/18/2021,0031018112/3,31018112, 1665.86,CDER Group,01773300,,Adjudication & Enforcement Ser,Parking Off-Street,E10HA000044230,
http://statistics.data.gov.uk/id/local-authority/29UP,Tonbridge & Malling Borough Council,8/18/2021,0031018113/3,31018113, 56.48,Npower Ltd,01675800,,Electricity,Parking Off-Street,E10HA000021002,
http://statistics.data.gov.uk/id/local-authority/29UP,Tonbridge & Malling Borough Council,8/18/2021,0031018114/3,31018114, 29.85,Npower Ltd,01675800,,Electricity,Parking Off-Street,E10HA000021002,
http://statistics.data.gov.uk/id/local-authority/29UP,Tonbridge & Malling Borough Council,8/18/2021,0031018115/3,31018115, 138.90,Npower Ltd,01675800,,Electricity,Parking Off-Street,E10HA000021002,
http://statistics.data.gov.uk/id/local-authority/29UP,Tonbridge & Malling Borough Council,8/18/2021,0031018117/1,31018117, 575.00,Archway Highway Services Ltd,01398000,,Re-opening High Streets,Eco Dev & Reg Gen Bus Support,D52TDCV1948076,310042704
http://statistics.data.gov.uk/id/local-authority/29UP,Tonbridge & Malling Borough Council,8/18/2021,0031018118/1,31018118, 97.00,Archway Highway Services Ltd,01398000,,Premises Repairs & Maintenance,Parking On-Street,E10HD000020601,
http://statistics.data.gov.uk/id/local-authority/29UP,Tonbridge & Malling Borough Council,8/18/2021,0031018119/1,31018119, 1112.96,Kent & Medway Towns Fire Authority,00193500,,Kent Resilience Forum,Civil Contingencies,D33NA000048032,310042700
http://statistics.data.gov.uk/id/local-authority/29UP,Tonbridge & Malling Borough Council,8/18/2021,0031018119/2,31018119, 13500.00,Kent & Medway Towns Fire Authority,00193500,,Kent Resilience Forum,Civil Contingencies,D33NA000048032,310042700
http://statistics.data.gov.uk/id/local-authority/29UP,Tonbridge & Malling Borough Council,8/18/2021,0031018121/1,31018121, 30.00,Door to Door Mobile Tyres,01591400,234388105,Winter Maintenance,Parking Off-Street,E10HA000020701,
http://statistics.data.gov.uk/id/local-authority/29UP,Tonbridge & Malling Borough Council,8/18/2021,0031018122/1,31018122, 48.00,Smyth Composites,01774000,,Bridge Maintenance,Open Spaces & Amenity Areas,B22LE000020505,310042701
http://statistics.data.gov.uk/id/local-authority/29UP,Tonbridge & Malling Borough Council,8/18/2021,0031018122/2,31018122, 297.40,Smyth Composites,01774000,,Bridge Maintenance,Open Spaces & Amenity Areas,B22LE000020505,310042701
http://statistics.data.gov.uk/id/local-authority/29UP,Tonbridge & Malling Borough Council,8/18/2021,0032009215/1,32009215, 333.12,KM Media Group Ltd,00053900,,Advertising General,Development Management,A01ABZ99944216,320003320
http://statistics.data.gov.uk/id/local-authority/29UP,Tonbridge & Malling Borough Council,8/18/2021,0032009216/3,32009216, 1320.00,G2 Recruitment Solutions,01786000,,Temporary Staff,Planning Sals&Overheads,D01AJDJ0111300,
http://statistics.data.gov.uk/id/local-authority/29UP,Tonbridge & Malling Borough Council,8/18/2021,0032009217/1,32009217, 10000.00,DLP Planning Limited,01800800,,Application & Appeals,Development Management,A01AB000044194,320003309
http://statistics.data.gov.uk/id/local-authority/29UP,Tonbridge & Malling Borough Council,8/18/2021,0032009218/1,32009218, 576.00,Charles & Associates,01739200,,Application & Appeals,Development Management,A01AB000044194,320003297
http://statistics.data.gov.uk/id/local-authority/29UP,Tonbridge & Malling Borough Council,8/18/2021,0032009218/2,32009218, 624.00,Charles & Associates,01739200,,Application & Appeals,Development Management,A01AB000044194,320003297
http://statistics.data.gov.uk/id/local-authority/29UP,Tonbridge & Malling Borough Council,8/18/2021,0032009219/1,32009219, 1628.52,The Planning Inspectorate,01097400,,Local Dev Framework Expenses,Preparation of Local Dev Frame,A01AE000044023,220003140
http://statistics.data.gov.uk/id/local-authority/29UP,Tonbridge & Malling Borough Council,8/18/2021,0032009220/1,32009220, 208.20,KM Media Group Ltd,00053900,,Advertising General,Development Management,A01ABZ99944216,320003321
http://statistics.data.gov.uk/id/local-authority/29UP,Tonbridge & Malling Borough Council,8/18/2021,0032009221/1,32009221, 205.00,London Borough of Camden,01429600,,Application & Appeals,Development Management,A01AB000044194,
http://statistics.data.gov.uk/id/local-authority/29UP,Tonbridge & Malling Borough Council,8/18/2021,0032009222/1,32009222, 660.00,G2 Recruitment Solutions,01786000,,Temporary Staff,Planning Sals&Overheads,D01AJDJ0111300,320003308
http://statistics.data.gov.uk/id/local-authority/29UP,Tonbridge & Malling Borough Council,8/18/2021,0032009226/1,32009226, 475.00,Robinson Escott Planning LLP,01653000,,Application & Appeals,Development Management,A01AB000044194,320003327
http://statistics.data.gov.uk/id/local-authority/29UP,Tonbridge & Malling Borough Council,8/18/2021,0032009227/1,32009227, 6054.60,DLP Planning Limited,01800800,,Application & Appeals,Development Management,A01AB000044194,320003328
http://statistics.data.gov.uk/id/local-authority/29UP,Tonbridge & Malling Borough Council,8/18/2021,0041033318/1,41033318, 25000.00,"Dep for Business, Energy & Industial Str",01793500,,Small Business Support,Local Revenue & NNDR Collect,D41QACV1948071,
http://statistics.data.gov.uk/id/local-authority/29UP,Tonbridge & Malling Borough Council,8/18/2021,0041033318/2,41033318, 69995.00,"Dep for Business, Energy & Industial Str",01793500,,Small Business Support,Local Revenue & NNDR Collect,D41QACV1948071,
http://statistics.data.gov.uk/id/local-authority/29UP,Tonbridge & Malling Borough Council,8/18/2021,0041033319/3,41033319, 117.78,Adelante Software Limited,01393800,812115871,Credit Card Commission,Banking Arrangements,D43QK000044082,
http://statistics.data.gov.uk/id/local-authority/29UP,Tonbridge & Malling Borough Council,8/18/2021,0041033320/3,41033320, 888.00,Morgan Hunt UK Ltd,01086900,,Temporary Staff,Finance Sals&Overheads,D01AFDF1111300,
http://statistics.data.gov.uk/id/local-authority/29UP,Tonbridge & Malling Borough Council,8/18/2021,0041033321/3,41033321, 1100.00,Morgan Hunt UK Ltd,01086900,,Temporary Staff,Finance Sals&Overheads,D01AFDF1111300,
http://statistics.data.gov.uk/id/local-authority/29UP,Tonbridge & Malling Borough Council,8/18/2021,0041033322/3,41033322, 646.43,Morgan Hunt UK Ltd,01086900,,Temporary Staff,Finance Sals&Overheads,D01AFDF1111300,
http://statistics.data.gov.uk/id/local-authority/29UP,Tonbridge & Malling Borough Council,8/18/2021,0041033323/3,41033323, 342.38,KH Recruitment Ltd,01738900,,Temporary Staff,Finance Sals&Overheads,D01AFDF1111300,
http://statistics.data.gov.uk/id/local-authority/29UP,Tonbridge & Malling Borough Council,8/18/2021,0041033324/3,41033324, 408.38,KH Recruitment Ltd,01738900,,Temporary Staff,Finance Sals&Overheads,D01AFDF1111300,
http://statistics.data.gov.uk/id/local-authority/29UP,Tonbridge & Malling Borough Council,8/18/2021,0041033325/3,41033325, 852.85,Maidstone Borough Council,01173700,,Bailiffs Commission,Local Revenue & NNDR Collect,D41QA000044075,
http://statistics.data.gov.uk/id/local-authority/29UP,Tonbridge & Malling Borough Council,8/18/2021,0041033326/3,41033326, 534.13,Rundle & Co Ltd,00087200,,Bailiffs Commission,Local Revenue & NNDR Collect,D41QA000044075,
http://statistics.data.gov.uk/id/local-authority/29UP,Tonbridge & Malling Borough Council,8/18/2021,0041033327/3,41033327, 353.12,Rundle & Co Ltd,00087200,,Bailiffs Commission,Local Revenue & NNDR Collect,D41QA000044075,
http://statistics.data.gov.uk/id/local-authority/29UP,Tonbridge & Malling Borough Council,8/18/2021,0041033333/1,41033333, 1500.00,Kent County Council,00322500,,Contract Services,Finance Sals&Overheads,D01AFDF0044005,410032013
http://statistics.data.gov.uk/id/local-authority/29UP,Tonbridge & Malling Borough Council,8/18/2021,0041033334/1,41033334, 1920.00,DG Consultancy,01617000,,Contract Services,Finance Sals&Overheads,D01AFDF0844005,410032012
http://statistics.data.gov.uk/id/local-authority/29UP,Tonbridge & Malling Borough Council,8/18/2021,0041033335/3,41033335, 925.00,Morgan Hunt UK Ltd,01086900,,Temporary Staff,Finance Sals&Overheads,D01AFDF1111300,
http://statistics.data.gov.uk/id/local-authority/29UP,Tonbridge & Malling Borough Council,8/18/2021,0041033336/3,41033336, 652.76,Morgan Hunt UK Ltd,01086900,,Temporary Staff,Finance Sals&Overheads,D01AFDF1111300,
http://statistics.data.gov.uk/id/local-authority/29UP,Tonbridge & Malling Borough Council,8/18/2021,0041033337/1,41033337, 1000.00,Kent County Council,00167000,,Tracing Services,Local Revenue & NNDR Collect,D41QA000044091,410032018
http://statistics.data.gov.uk/id/local-authority/29UP,Tonbridge & Malling Borough Council,8/18/2021,0041033338/1,41033338, 2420.00,Kent County Council,00167000,,Tracing Services,Local Revenue & NNDR Collect,D41QA000044091,410032017
http://statistics.data.gov.uk/id/local-authority/29UP,Tonbridge & Malling Borough Council,8/18/2021,0041033342/3,41033342, 127.88,KH Recruitment Ltd,01738900,,Temporary Staff,Finance Sals&Overheads,D01AFDF1111300,
http://statistics.data.gov.uk/id/local-authority/29UP,Tonbridge & Malling Borough Council,8/18/2021,0041033343/1,41033343, 1025.15,Maidstone Borough Council,01173700,,Bailiffs Commission,Local Revenue & NNDR Collect,D41QA000044075,
http://statistics.data.gov.uk/id/local-authority/29UP,Tonbridge & Malling Borough Council,8/18/2021,0041033344/1,41033344, 4860.00,NEC Software Solutions UK Ltd,01073900,202159745,Information Technology,Housing Benefits,C05CL000071170,410032000
http://statistics.data.gov.uk/id/local-authority/29UP,Tonbridge & Malling Borough Council,8/18/2021,0041033345/3,41033345, 845.65,Rundle & Co Ltd,00087200,,Bailiffs Commission,Local Revenue & NNDR Collect,D41QA000044075,
http://statistics.data.gov.uk/id/local-authority/29UP,Tonbridge & Malling Borough Council,8/18/2021,0041033354/1,41033354, 21.70,Tameside Metropolitan Borough,00770200,,Other Expenses,Finance Sals&Overheads,D01AFDF0648010,410032007
http://statistics.data.gov.uk/id/local-authority/29UP,Tonbridge & Malling Borough Council,8/18/2021,0041033355/1,41033355, 36663.12,Cushman & Wakefield,01772600,,Pay to Principal - Angel East,Parking Off-Street,E10HAE00144196,
http://statistics.data.gov.uk/id/local-authority/29UP,Tonbridge & Malling Borough Council,8/18/2021,0051008577/1,51008577, 240.00,Technical Training Solutions LLP,00920700,,Ext Fees/Prof & Tech,Training,D10DCDN0213561,510010502
http://statistics.data.gov.uk/id/local-authority/29UP,Tonbridge & Malling Borough Council,8/18/2021,0051008578/1,51008578, 570.00,APSE,01182700,,Ext Fees/Prof & Tech,Training,D10DCDG0113561,510010476
http://statistics.data.gov.uk/id/local-authority/29UP,Tonbridge & Malling Borough Council,8/18/2021,0051008579/1,51008579, 100.00,RHE Global,01812300,,Ext Fees/Prof & Tech,Training,D10DCDV0313561,510010505
http://statistics.data.gov.uk/id/local-authority/29UP,Tonbridge & Malling Borough Council,8/20/2021,0011043054/3,11043054, 1333.31,KCS,00054200,,Gas,Buildings,D21FEDD6021003,
http://statistics.data.gov.uk/id/local-authority/29UP,Tonbridge & Malling Borough Council,8/20/2021,0011043055/1,11043055, 1900.00,Laddingford Engineering Ltd,00782700,,BRREP General Maintenance,Larkfield Leisure Centre,M15HDP10001900,110068973
http://statistics.data.gov.uk/id/local-authority/29UP,Tonbridge & Malling Borough Council,8/20/2021,0011043056/1,11043056, 200.00,Safesite Limited,01029900,574362624,BRREP Servicing - safety line,Angel Centre,M15HAP20001965,110069120
http://statistics.data.gov.uk/id/local-authority/29UP,Tonbridge & Malling Borough Council,8/20/2021,0011043056/2,11043056, 300.00,Safesite Limited,01029900,574362624,BRREP Servicing - safety line,Larkfield Leisure Centre,M15HDP20001965,110069120
http://statistics.data.gov.uk/id/local-authority/29UP,Tonbridge & Malling Borough Council,8/20/2021,0011043056/3,11043056, 396.00,Safesite Limited,01029900,574362624,BRREP Servicing - safety line,Tonbridge Castle Gatehouse,M15HKP20001965,110069120
http://statistics.data.gov.uk/id/local-authority/29UP,Tonbridge & Malling Borough Council,8/20/2021,0011043056/4,11043056, 200.00,Safesite Limited,01029900,574362624,BRREP Servicing - safety line,Gibson Building West,M15KBP20001965,110069120
http://statistics.data.gov.uk/id/local-authority/29UP,Tonbridge & Malling Borough Council,8/20/2021,0011043056/5,11043056, 276.00,Safesite Limited,01029900,574362624,BRREP Servicing - safety line,Tonbridge Castle / CAB,M15KFP20001965,110069120
http://statistics.data.gov.uk/id/local-authority/29UP,Tonbridge & Malling Borough Council,8/20/2021,0011043057/1,11043057, 370.00,Marine And Industrial Pump Services,00062800,,BRREP Servicing - sump pumps,Tonbridge Swimming Pool,M15HBP20001911,110069139
http://statistics.data.gov.uk/id/local-authority/29UP,Tonbridge & Malling Borough Council,8/20/2021,0011043058/1,11043058, 250.00,BML Building Services Ltd,01505000,,BRREP Response - General,Tonbridge Swimming Pool,M15HBP50001997,110069160
http://statistics.data.gov.uk/id/local-authority/29UP,Tonbridge & Malling Borough Council,8/20/2021,0011043059/1,11043059, 243.10,Kite Packaging Ltd,01811700,,Purchases,Cleaning & Security,D21FD000040101,110069164
http://statistics.data.gov.uk/id/local-authority/29UP,Tonbridge & Malling Borough Council,8/20/2021,0011043059/2,11043059, 15.99,Kite Packaging Ltd,01811700,,Purchases,Cleaning & Security,D21FD000040101,110069164
http://statistics.data.gov.uk/id/local-authority/29UP,Tonbridge & Malling Borough Council,8/20/2021,0011043060/1,11043060, 19.00,KCS,00054200,,Cleaning & Domestic Supplies,Cleaning & Security,D21FD000026001,110069162
http://statistics.data.gov.uk/id/local-authority/29UP,Tonbridge & Malling Borough Council,8/20/2021,0011043061/1,11043061, 107.99,Prosec General Security Ltd,00810600,,Office Security,Ton Castle Council Chamber,D21FC000044047,
http://statistics.data.gov.uk/id/local-authority/29UP,Tonbridge & Malling Borough Council,8/20/2021,0011043061/2,11043061, 682.68,Prosec General Security Ltd,00810600,,Office Security,Cleaning & Security,D21FD000044047,
http://statistics.data.gov.uk/id/local-authority/29UP,Tonbridge & Malling Borough Council,8/20/2021,0011043061/3,11043061, 3030.75,Prosec General Security Ltd,00810600,,Office Security,Tonbridge Gateway,D23TG000044047,
http://statistics.data.gov.uk/id/local-authority/29UP,Tonbridge & Malling Borough Council,8/20/2021,0011043062/1,11043062, 1393.00,TMS Protection Ltd,01744300,,Re-opening High Streets,Eco Dev & Reg Gen Bus Support,D52TDCV1948076,
http://statistics.data.gov.uk/id/local-authority/29UP,Tonbridge & Malling Borough Council,8/20/2021,0011043063/1,11043063, 1650.00,KH Recruitment Ltd,01738900,,Temporary Staff,Admin & Prop Sals&Overheads,D01AADA1211300,
http://statistics.data.gov.uk/id/local-authority/29UP,Tonbridge & Malling Borough Council,8/20/2021,0011043064/1,11043064, 1365.00,Cornerstones Barristers,01359100,,Legal Fees,Legal Sals&Overheads,D01ARDR0044002,
http://statistics.data.gov.uk/id/local-authority/29UP,Tonbridge & Malling Borough Council,8/20/2021,0011043065/1,11043065, 640.00,Cornerstones Barristers,01359100,,Legal Fees,Legal Sals&Overheads,D01ARDR0044002,
http://statistics.data.gov.uk/id/local-authority/29UP,Tonbridge & Malling Borough Council,8/20/2021,0011043066/1,11043066, 2055.00,Cornerstones Barristers,01359100,,Legal Fees,Legal Sals&Overheads,D01ARDR0044002,
http://statistics.data.gov.uk/id/local-authority/29UP,Tonbridge & Malling Borough Council,8/20/2021,0011043067/1,11043067, 693.00,Venn Group Ltd,00914300,,Temporary Staff,Legal Sals&Overheads,D01ARDR0011300,
http://statistics.data.gov.uk/id/local-authority/29UP,Tonbridge & Malling Borough Council,8/20/2021,0011043068/1,11043068, 325.31,Initial Washroom Hygiene,00048300,,Laundry - Roller Towels,Cleaning & Security,D21FD000042003,
http://statistics.data.gov.uk/id/local-authority/29UP,Tonbridge & Malling Borough Council,8/20/2021,0011043069/1,11043069, 1443.90,Royal Mail,00086200,,Purchases,Mailsort Stock Account,K37BR000001002,
http://statistics.data.gov.uk/id/local-authority/29UP,Tonbridge & Malling Borough Council,8/20/2021,0011043070/1,11043070, 318.00,Premier Group Recycling Ltd,01365300,,Confidential Waste,Cleaning & Security,D21FD000044009,
http://statistics.data.gov.uk/id/local-authority/29UP,Tonbridge & Malling Borough Council,8/20/2021,0011043071/1,11043071, 353.70,Premier Paper Group,01421800,,Purchases - Paper,Printing,D22GA000040102,
http://statistics.data.gov.uk/id/local-authority/29UP,Tonbridge & Malling Borough Council,8/20/2021,0011043072/1,11043072, 495.75,BML Building Services Ltd,01505000,,BRREP Response - General,PC - General,M15JAP50001997,
http://statistics.data.gov.uk/id/local-authority/29UP,Tonbridge & Malling Borough Council,8/20/2021,0011043073/1,11043073, 616.00,BML Building Services Ltd,01505000,,BRREP Response - General,PC - General,M15JAP50001997,
http://statistics.data.gov.uk/id/local-authority/29UP,Tonbridge & Malling Borough Council,8/20/2021,0011043074/1,11043074, 83.33,Tonbridge Services Limited,00427300,,Meeting Expenses,Committee Administration,D29LL000048020,
http://statistics.data.gov.uk/id/local-authority/29UP,Tonbridge & Malling Borough Council,8/20/2021,0011043075/1,11043075, 861.00,Thomson Snell & Passmore,00101700,,Legal Fees,Legal Sals&Overheads,D01ARDR0044002,
http://statistics.data.gov.uk/id/local-authority/29UP,Tonbridge & Malling Borough Council,8/20/2021,0011043076/1,11043076, 651.00,Thomson Snell & Passmore,00101700,,Legal Fees,Legal Sals&Overheads,D01ARDR0044002,
http://statistics.data.gov.uk/id/local-authority/29UP,Tonbridge & Malling Borough Council,8/20/2021,0011043077/1,11043077, 682.00,Thomson Snell & Passmore,00101700,,Legal Fees,Legal Sals&Overheads,D01ARDR0044002,
http://statistics.data.gov.uk/id/local-authority/29UP,Tonbridge & Malling Borough Council,8/20/2021,0011043078/1,11043078, 1240.00,Thomson Snell & Passmore,00101700,,Legal Fees,Legal Sals&Overheads,D01ARDR0044002,
http://statistics.data.gov.uk/id/local-authority/29UP,Tonbridge & Malling Borough Council,8/20/2021,0011043079/1,11043079, 1178.00,Thomson Snell & Passmore,00101700,,Legal Fees,Legal Sals&Overheads,D01ARDR0044002,
http://statistics.data.gov.uk/id/local-authority/29UP,Tonbridge & Malling Borough Council,8/20/2021,0011043080/1,11043080, 711.00,Thomson Snell & Passmore,00101700,,Legal Fees,Legal Sals&Overheads,D01ARDR0044002,
http://statistics.data.gov.uk/id/local-authority/29UP,Tonbridge & Malling Borough Council,8/20/2021,0011043081/1,11043081, 782.00,BML Building Services Ltd,01505000,,BRREP Window/door repairs,Angel Centre,M15HAP20001919,
http://statistics.data.gov.uk/id/local-authority/29UP,Tonbridge & Malling Borough Council,8/20/2021,0011043082/1,11043082, 260.00,Willow Pumps Ltd,00114100,,BRREP Servicing - Pumping Stn,Tonbridge Swimming Pool,M15HBP20001931,110069169
http://statistics.data.gov.uk/id/local-authority/29UP,Tonbridge & Malling Borough Council,8/20/2021,0011043083/1,11043083, 1680.00,Willow Pumps Ltd,00114100,,BRREP Servicing - Pumping Stn,Ton Sportsgrnd Bldgs / Toilets,M15HCP20001931,110069144
http://statistics.data.gov.uk/id/local-authority/29UP,Tonbridge & Malling Borough Council,8/20/2021,0011043084/1,11043084, 1380.00,Willow Pumps Ltd,00114100,,BRREP Servicing - Pumping Stn,Tonbridge Swimming Pool,M15HBP20001931,110069123
http://statistics.data.gov.uk/id/local-authority/29UP,Tonbridge & Malling Borough Council,8/20/2021,0011043085/1,11043085, 653.00,BML Building Services Ltd,01505000,,BRREP Response - General,PC - General,M15JAP50001997,
http://statistics.data.gov.uk/id/local-authority/29UP,Tonbridge & Malling Borough Council,8/20/2021,0011043086/1,11043086, 158.00,BML Building Services Ltd,01505000,,BRREP Response - General,PC - General,M15JAP50001997,
http://statistics.data.gov.uk/id/local-authority/29UP,Tonbridge & Malling Borough Council,8/20/2021,0011043087/1,11043087, 39.22,Atlas Facilities Managment Limited ,01075900,,Miscellaneous Services,Cleaning & Security,D21FDDD1044015,
http://statistics.data.gov.uk/id/local-authority/29UP,Tonbridge & Malling Borough Council,8/20/2021,0021037398/1,21037398, 432.00,TMS Protection Ltd,01744300,,Gates / Security,Leybourne Lakes Country Park,B22LK000044017,210056302
http://statistics.data.gov.uk/id/local-authority/29UP,Tonbridge & Malling Borough Council,8/20/2021,0021037399/1,21037399, 108.64,Wicksteed Leisure Limited,00167900,,Maintenance of Grounds,Haysden Country Park,B22LC000020402,210056368
http://statistics.data.gov.uk/id/local-authority/29UP,Tonbridge & Malling Borough Council,8/20/2021,0021037399/2,21037399, 400.00,Wicksteed Leisure Limited,00167900,,Maintenance of Play Equipment,Open Spaces & Amenity Areas,B22LE000020503,210056368
http://statistics.data.gov.uk/id/local-authority/29UP,Tonbridge & Malling Borough Council,8/20/2021,0021037400/3,21037400, 293.00,KCC - L.A.S.E.R Commercial Services ,00184300,,Electricity,Haysden Country Park,B22LC000021002,
http://statistics.data.gov.uk/id/local-authority/29UP,Tonbridge & Malling Borough Council,8/20/2021,0021037401/1,21037401, 1015.00,Weddle and Co,00714900,,Purchases,Open Spaces & Amenity Areas,B22LECV1940101,210056387
http://statistics.data.gov.uk/id/local-authority/29UP,Tonbridge & Malling Borough Council,8/20/2021,0021037402/1,21037402, 485.00,Westway Fencing and Garden Services,00159700,,Maintenance of Grounds,Haysden Country Park,B22LC000020402,210056375
http://statistics.data.gov.uk/id/local-authority/29UP,Tonbridge & Malling Borough Council,8/20/2021,0021037403/1,21037403, 350.00,Westway Fencing and Garden Services,00159700,,Maintenance of Grounds,Haysden Country Park,B22LC000020402,210056266
http://statistics.data.gov.uk/id/local-authority/29UP,Tonbridge & Malling Borough Council,8/20/2021,0021037404/1,21037404, 325.00,Westway Fencing and Garden Services,00159700,,Maintenance of Grounds,Sports Grounds,B13ET000020402,210056417
http://statistics.data.gov.uk/id/local-authority/29UP,Tonbridge & Malling Borough Council,8/20/2021,0022025696/1,22025696, 5840.00,Gregory (Kent) LTD,01310800,,Other Expenses,Disabled Facilities Grant Mand,P03AC000009908,
http://statistics.data.gov.uk/id/local-authority/29UP,Tonbridge & Malling Borough Council,8/20/2021,0022025697/1,22025697, 5000.00,Dolphin Stairlifts,00698900,,Other Expenses,Disabled Facilities Grant Mand,P03AC000009908,
http://statistics.data.gov.uk/id/local-authority/29UP,Tonbridge & Malling Borough Council,8/20/2021,0022025698/1,22025698, 662.40,Peabody South East LTD,01680900,,Other Expenses,Disabled Facilities Grant Mand,P03AC000009908,
http://statistics.data.gov.uk/id/local-authority/29UP,Tonbridge & Malling Borough Council,8/20/2021,0022025699/1,22025699, 1203.00,The Royal British Legion Industries,00085300,,Abatement Initiatives,Street Scene,H23SD000044006,220003079
http://statistics.data.gov.uk/id/local-authority/29UP,Tonbridge & Malling Borough Council,8/20/2021,0022025699/2,22025699, 15.00,The Royal British Legion Industries,00085300,,Abatement Initiatives,Street Scene,H23SD000044006,220003079
http://statistics.data.gov.uk/id/local-authority/29UP,Tonbridge & Malling Borough Council,8/20/2021,0022025700/1,22025700, 450.00,TLC-The Ladies Can,01762200,,Professional Fees,Homelessness,C01AA000044001,
http://statistics.data.gov.uk/id/local-authority/29UP,Tonbridge & Malling Borough Council,8/20/2021,0022025701/1,22025701, 446.65,KelticLimited,01000400,,Purchases,Street Scene,H23SD000040101,220003120
http://statistics.data.gov.uk/id/local-authority/29UP,Tonbridge & Malling Borough Council,8/20/2021,0022025701/2,22025701, 9.95,KelticLimited,01000400,,Purchases,Street Scene,H23SD000040101,220003120
http://statistics.data.gov.uk/id/local-authority/29UP,Tonbridge & Malling Borough Council,8/20/2021,0022025701/3,22025701, 82.95,KelticLimited,01000400,,Purchases,Street Scene,H23SD000040101,220003120
http://statistics.data.gov.uk/id/local-authority/29UP,Tonbridge & Malling Borough Council,8/20/2021,0022025702/1,22025702, 17032.36,Consultants in Care Ltd,01764200,,Temporary Accommodation,Homelessness,C01AA000044051,
http://statistics.data.gov.uk/id/local-authority/29UP,Tonbridge & Malling Borough Council,8/20/2021,0022025702/2,22025702, 638.72,Consultants in Care Ltd,01764200,,Temporary Accommodation,Homelessness,C01AA000044051,
http://statistics.data.gov.uk/id/local-authority/29UP,Tonbridge & Malling Borough Council,8/20/2021,0031018123/3,31018123, 156.30,British Telecommunications Plc,00012800,,CCTV Monitoring Station,Security Services Management,E09GA000051020,
http://statistics.data.gov.uk/id/local-authority/29UP,Tonbridge & Malling Borough Council,8/20/2021,0031018124/3,31018124, 312.60,British Telecommunications Plc,00012800,,Maintenance - General,Security Services Management,E09GA000040135,
http://statistics.data.gov.uk/id/local-authority/29UP,Tonbridge & Malling Borough Council,8/20/2021,0031018124/4,31018124, 40.00,British Telecommunications Plc,00012800,,Maintenance - General,Security Services Management,E09GA000040135,
http://statistics.data.gov.uk/id/local-authority/29UP,Tonbridge & Malling Borough Council,8/20/2021,0031018125/1,31018125, 308.65,G & G Signs,01178400,,Purchases,Boro Highways & Emergency Oper,E01AA000040101,310042703
http://statistics.data.gov.uk/id/local-authority/29UP,Tonbridge & Malling Borough Council,8/20/2021,0031018125/2,31018125, 24.00,G & G Signs,01178400,,Purchases,Boro Highways & Emergency Oper,E01AA000040101,310042703
http://statistics.data.gov.uk/id/local-authority/29UP,Tonbridge & Malling Borough Council,8/20/2021,0032009228/1,32009228, 711.30,G2 Recruitment Solutions,01786000,,Temporary Staff,Planning Sals&Overheads,D01AJDJ0111300,320003308
http://statistics.data.gov.uk/id/local-authority/29UP,Tonbridge & Malling Borough Council,8/20/2021,0041033360/1,41033360, 2278.00,H.M. Revenue & Customs,00048400,,Levy Payment,Apprenticeship Scheme,D10DE000013700,
http://statistics.data.gov.uk/id/local-authority/29UP,Tonbridge & Malling Borough Council,8/20/2021,0041033361/1,41033361, 1179.34,WorldPay ,01568000,,Credit Card Commission,Banking Arrangements,D43QK000044082,
http://statistics.data.gov.uk/id/local-authority/29UP,Tonbridge & Malling Borough Council,8/20/2021,0041033362/1,41033362, 2342.29,WorldPay ,01568000,,Credit Card Commission,Banking Arrangements,D43QK000044082,
http://statistics.data.gov.uk/id/local-authority/29UP,Tonbridge & Malling Borough Council,8/20/2021,0041033362/2,41033362, 240.53,WorldPay ,01568000,,Credit Card Commission,Banking Arrangements,D43QK000044082,
http://statistics.data.gov.uk/id/local-authority/29UP,Tonbridge & Malling Borough Council,8/20/2021,0051008580/3,51008580, 100.00,RH Environmental Ltd RH Global,01221000,,Ext Fees/Prof & Tech,Training,D10DCDV0313561,
http://statistics.data.gov.uk/id/local-authority/29UP,Tonbridge & Malling Borough Council,8/24/2021,0041033369/1,41033369, 275.21,E.ON,01790900,,Electricity,Homelessness,C01AA000021002,
http://statistics.data.gov.uk/id/local-authority/29UP,Tonbridge & Malling Borough Council,8/24/2021,0041033371/1,41033371, 140.00,National Westminster Bank Plc,00069400,,Direct Debit / Bank Charges,Local Revenue & NNDR Collect,D41QA000044079,
http://statistics.data.gov.uk/id/local-authority/29UP,Tonbridge & Malling Borough Council,8/24/2021,0041033372/1,41033372, 200.84,National Westminster Bank Plc,00069400,,Direct Debit / Bank Charges,Local Revenue & NNDR Collect,D41QA000044079,
http://statistics.data.gov.uk/id/local-authority/29UP,Tonbridge & Malling Borough Council,8/27/2021,0041033382/1,41033382, 850.00,Imperial Civil Enforcement Solutions,00057200,,Initial Furniture & Equipment,CMS Web Sol'n,P06EX000009906,
http://statistics.data.gov.uk/id/local-authority/29UP,Tonbridge & Malling Borough Council,8/31/2021,0011043088/1,11043088, 1113.00,AES Security Systems,00759100,,BRREP Servicing-IntruderAlarm,Gibson Building East,M15KGP20001939,110068967
http://statistics.data.gov.uk/id/local-authority/29UP,Tonbridge & Malling Borough Council,8/31/2021,0011043089/1,11043089, 957.00,AES Security Systems,00759100,,BRREP Servicing-IntruderAlarm,Gibson Building West,M15KBP20001939,110068968
http://statistics.data.gov.uk/id/local-authority/29UP,Tonbridge & Malling Borough Council,8/31/2021,0011043105/3,11043105, 76.00,AES Security Systems,00759100,,BRREP Servicing-IntruderAlarm,Gibson Building West,M15KBP20001939,
